{"text_format":"1","workbook":"xlsx","n_sheets":6,"sheets":["名簿","基本情報","受診記録","申送事項","看護日誌","年間記録"],"not_rendered":{"charts":0,"images":0,"macros":1,"external_links":0,"defined_names":4,"comments":3,"pivot_tables":0},"unopened":[],"bounds":{"document_bytes":16777216,"sheet_cells":100000,"rows_first":2000,"rows_last":500,"rows_between":2000,"halvings":0,"cell_chars":16384,"cell_head_chars":4096},"cells_cut":0,"cells_raw":0,"read":"whole","date_system":"1900"}

{"sheet":"名簿","index":0,"n_rows":106,"n_cols":21,"rows_kept":106,"cut":false,"hidden":false,"merged":[[3,2,3,4]]}
[null,null,null,null,null,null,null,null,null,null,null,null,null,null,null,{"$f":"IF(U1>0,Q1,DATE(G2,H2,I2))","v":"2012-06-06"},{"$f":"DATE(R1,S1,T1)","v":"2012-06-06"},{"$f":"YEAR(NOW())","v":2012},{"$f":"MONTH(NOW())","v":6},{"$f":"DAY(NOW())","v":6},{"$f":"G2*H2*I2","v":72432}]
[null,null,null,null,null,null,2012,6,6,null,null,null,null,null,null,{"$f":"CONCATENATE(P7,P8,P9,P10,P11,P12,P13,P14,P15,P16,P17,P18,P19,P20,P21,P22,P23,P24,P25,P26,P27,P28,P29,P30,P31,P32,P33,P34,P35,P36)","v":""},"","","","",""]
[null,null,null,null,null,"削除番号",null,null,null,null,null,null,null,null,null,{"$f":"CONCATENATE(P37,P38,P39,P40,P41,P42,P43,P44,P45,P46,P47,P48,P49,P50,P51,P52,P53,P54,P55,P56,P57,P58,P59,P60,P61,P62,P63,P64,P65,P66)","v":""},"","","","",""]
[null,null,"利用者名簿",null,null,null,null,null,{"$f":"IF(F4=\"\",\"\",VLOOKUP(F4,C6:E96,2)&\"さんを削除します！\")","v":""},null,null,null,null,null,null,{"$f":"CONCATENATE(P67,P68,P69,P70,P71,P72,P73,P74,P75,P76,P77,P78,P79,P80,P81,P82,P83,P84,P85,P86,P87,P88,P89,P90,P91,P92,P93,P94,P95,P96)","v":""},"","","","",""]
[null,null,null,null,null,null,null,null,null,null,null,null,null,null,null,{"$f":"CONCATENATE(P97,P98,P99,P100,P101,P102,P103,P104,P105,P106)","v":""},"","","","",""]
[null,"検索","番号","お名前","フリガナ","入院日","退院日","鼻腔","胃瘻","ショート","発熱","就寝\n前薬","緩下剤","点滴","IVH","入院者抽出","発熱者抽出","就寝前薬","緩下剤","点滴","IVH"]
[null,{"$f":"IF(E7=\"\",\"ﾝﾝ\"&C7,IF(J7=\"○\",\"ｦ\"&E7,IF(OR(F7=\"\",G7>0),E7,\"ﾝ\"&E7)))","v":"ﾝﾝ1"},{"$f":"ROW()-6","v":1},null,null,null,null,null,null,null,null,null,null,null,null,{"$f":"IF(F7=\"\",\"\",IF(F7*G7>0,\"\",D7&\"　\"))","v":""},{"$f":"IF(K7=\"\",\"\",D7&\"　\"&K7&\"℃\"&\"　\")","v":""},{"$f":"IF(L7=\"\",\"\",D7&\"　\")","v":""},{"$f":"IF(M7=\"\",\"\",D7&\"　\")","v":""},{"$f":"IF(N7=\"\",\"\",D7&\"　\")","v":""},{"$f":"IF(O7=\"\",\"\",D7&\"　\")","v":""}]
[null,{"$f":"IF(E8=\"\",\"ﾝﾝ\"&C8,IF(J8=\"○\",\"ｦ\"&E8,IF(OR(F8=\"\",G8>0),E8,\"ﾝ\"&E8)))","v":"ﾝﾝ2"},{"$f":"ROW()-6","v":2},null,null,null,null,null,null,null,null,null,null,null,null,"","","","","",""]
[null,{"$f":"IF(E9=\"\",\"ﾝﾝ\"&C9,IF(J9=\"○\",\"ｦ\"&E9,IF(OR(F9=\"\",G9>0),E9,\"ﾝ\"&E9)))","v":"ﾝﾝ3"},{"$f":"ROW()-6","v":3},null,null,null,null,null,null,null,null,null,null,null,null,"",{"$f":"IF(K9=\"\",\"\",D9&\"　\"&K9&\"℃\"&\"　\")","v":""},{"$f":"IF(L9=\"\",\"\",D9&\"　\")","v":""},{"$f":"IF(M9=\"\",\"\",D9&\"　\")","v":""},{"$f":"IF(N9=\"\",\"\",D9&\"　\")","v":""},{"$f":"IF(O9=\"\",\"\",D9&\"　\")","v":""}]
[null,{"$f":"IF(E10=\"\",\"ﾝﾝ\"&C10,IF(J10=\"○\",\"ｦ\"&E10,IF(OR(F10=\"\",G10>0),E10,\"ﾝ\"&E10)))","v":"ﾝﾝ4"},{"$f":"ROW()-6","v":4},null,null,null,null,null,null,null,null,null,null,null,null,"","","","","",""]
[null,{"$f":"IF(E11=\"\",\"ﾝﾝ\"&C11,IF(J11=\"○\",\"ｦ\"&E11,IF(OR(F11=\"\",G11>0),E11,\"ﾝ\"&E11)))","v":"ﾝﾝ5"},{"$f":"ROW()-6","v":5},null,null,null,null,null,null,null,null,null,null,null,null,"","","","","",""]
[null,{"$f":"IF(E12=\"\",\"ﾝﾝ\"&C12,IF(J12=\"○\",\"ｦ\"&E12,IF(OR(F12=\"\",G12>0),E12,\"ﾝ\"&E12)))","v":"ﾝﾝ6"},{"$f":"ROW()-6","v":6},null,null,null,null,null,null,null,null,null,null,null,null,"","","","","",""]
[null,{"$f":"IF(E13=\"\",\"ﾝﾝ\"&C13,IF(J13=\"○\",\"ｦ\"&E13,IF(OR(F13=\"\",G13>0),E13,\"ﾝ\"&E13)))","v":"ﾝﾝ7"},{"$f":"ROW()-6","v":7},null,null,null,null,null,null,null,null,null,null,null,null,"","","","","",""]
[null,{"$f":"IF(E14=\"\",\"ﾝﾝ\"&C14,IF(J14=\"○\",\"ｦ\"&E14,IF(OR(F14=\"\",G14>0),E14,\"ﾝ\"&E14)))","v":"ﾝﾝ8"},{"$f":"ROW()-6","v":8},null,null,null,null,null,null,null,null,null,null,null,null,"","","","","",""]
[null,{"$f":"IF(E15=\"\",\"ﾝﾝ\"&C15,IF(J15=\"○\",\"ｦ\"&E15,IF(OR(F15=\"\",G15>0),E15,\"ﾝ\"&E15)))","v":"ﾝﾝ9"},{"$f":"ROW()-6","v":9},null,null,null,null,null,null,null,null,null,null,null,null,"","","","","",""]
[null,{"$f":"IF(E16=\"\",\"ﾝﾝ\"&C16,IF(J16=\"○\",\"ｦ\"&E16,IF(OR(F16=\"\",G16>0),E16,\"ﾝ\"&E16)))","v":"ﾝﾝ10"},{"$f":"ROW()-6","v":10},null,null,null,null,null,null,null,null,null,null,null,null,"","","","","",""]
[null,{"$f":"IF(E17=\"\",\"ﾝﾝ\"&C17,IF(J17=\"○\",\"ｦ\"&E17,IF(OR(F17=\"\",G17>0),E17,\"ﾝ\"&E17)))","v":"ﾝﾝ11"},{"$f":"ROW()-6","v":11},null,null,null,null,null,null,null,null,null,null,null,null,"","","","","",""]
[null,{"$f":"IF(E18=\"\",\"ﾝﾝ\"&C18,IF(J18=\"○\",\"ｦ\"&E18,IF(OR(F18=\"\",G18>0),E18,\"ﾝ\"&E18)))","v":"ﾝﾝ12"},{"$f":"ROW()-6","v":12},null,null,null,null,null,null,null,null,null,null,null,null,"","","","","",""]
[null,{"$f":"IF(E19=\"\",\"ﾝﾝ\"&C19,IF(J19=\"○\",\"ｦ\"&E19,IF(OR(F19=\"\",G19>0),E19,\"ﾝ\"&E19)))","v":"ﾝﾝ13"},{"$f":"ROW()-6","v":13},null,null,null,null,null,null,null,null,null,null,null,null,"","","","","",""]
[null,{"$f":"IF(E20=\"\",\"ﾝﾝ\"&C20,IF(J20=\"○\",\"ｦ\"&E20,IF(OR(F20=\"\",G20>0),E20,\"ﾝ\"&E20)))","v":"ﾝﾝ14"},{"$f":"ROW()-6","v":14},null,null,null,null,null,null,null,null,null,null,null,null,"","","","","",""]
[null,{"$f":"IF(E21=\"\",\"ﾝﾝ\"&C21,IF(J21=\"○\",\"ｦ\"&E21,IF(OR(F21=\"\",G21>0),E21,\"ﾝ\"&E21)))","v":"ﾝﾝ15"},{"$f":"ROW()-6","v":15},null,null,null,null,null,null,null,null,null,null,null,null,"","","","","",""]
[null,{"$f":"IF(E22=\"\",\"ﾝﾝ\"&C22,IF(J22=\"○\",\"ｦ\"&E22,IF(OR(F22=\"\",G22>0),E22,\"ﾝ\"&E22)))","v":"ﾝﾝ16"},{"$f":"ROW()-6","v":16},null,null,null,null,null,null,null,null,null,null,null,null,"","","","","",""]
[null,{"$f":"IF(E23=\"\",\"ﾝﾝ\"&C23,IF(J23=\"○\",\"ｦ\"&E23,IF(OR(F23=\"\",G23>0),E23,\"ﾝ\"&E23)))","v":"ﾝﾝ17"},{"$f":"ROW()-6","v":17},null,null,null,null,null,null,null,null,null,null,null,null,"","","","","",""]
[null,{"$f":"IF(E24=\"\",\"ﾝﾝ\"&C24,IF(J24=\"○\",\"ｦ\"&E24,IF(OR(F24=\"\",G24>0),E24,\"ﾝ\"&E24)))","v":"ﾝﾝ18"},{"$f":"ROW()-6","v":18},null,null,null,null,null,null,null,null,null,null,null,null,"","","","","",""]
[null,{"$f":"IF(E25=\"\",\"ﾝﾝ\"&C25,IF(J25=\"○\",\"ｦ\"&E25,IF(OR(F25=\"\",G25>0),E25,\"ﾝ\"&E25)))","v":"ﾝﾝ19"},{"$f":"ROW()-6","v":19},null,null,null,null,null,null,null,null,null,null,null,null,"","","","","",""]
[null,{"$f":"IF(E26=\"\",\"ﾝﾝ\"&C26,IF(J26=\"○\",\"ｦ\"&E26,IF(OR(F26=\"\",G26>0),E26,\"ﾝ\"&E26)))","v":"ﾝﾝ20"},{"$f":"ROW()-6","v":20},null,null,null,null,null,null,null,null,null,null,null,null,"","","","","",""]
[null,{"$f":"IF(E27=\"\",\"ﾝﾝ\"&C27,IF(J27=\"○\",\"ｦ\"&E27,IF(OR(F27=\"\",G27>0),E27,\"ﾝ\"&E27)))","v":"ﾝﾝ21"},{"$f":"ROW()-6","v":21},null,null,null,null,null,null,null,null,null,null,null,null,"","","","","",""]
[null,{"$f":"IF(E28=\"\",\"ﾝﾝ\"&C28,IF(J28=\"○\",\"ｦ\"&E28,IF(OR(F28=\"\",G28>0),E28,\"ﾝ\"&E28)))","v":"ﾝﾝ22"},{"$f":"ROW()-6","v":22},null,null,null,null,null,null,null,null,null,null,null,null,"","","","","",""]
[null,{"$f":"IF(E29=\"\",\"ﾝﾝ\"&C29,IF(J29=\"○\",\"ｦ\"&E29,IF(OR(F29=\"\",G29>0),E29,\"ﾝ\"&E29)))","v":"ﾝﾝ23"},{"$f":"ROW()-6","v":23},null,null,null,null,null,null,null,null,null,null,null,null,"","","","","",""]
[null,{"$f":"IF(E30=\"\",\"ﾝﾝ\"&C30,IF(J30=\"○\",\"ｦ\"&E30,IF(OR(F30=\"\",G30>0),E30,\"ﾝ\"&E30)))","v":"ﾝﾝ24"},{"$f":"ROW()-6","v":24},null,null,null,null,null,null,null,null,null,null,null,null,"","","","","",""]
[null,{"$f":"IF(E31=\"\",\"ﾝﾝ\"&C31,IF(J31=\"○\",\"ｦ\"&E31,IF(OR(F31=\"\",G31>0),E31,\"ﾝ\"&E31)))","v":"ﾝﾝ25"},{"$f":"ROW()-6","v":25},null,null,null,null,null,null,null,null,null,null,null,null,"","","","","",""]
[null,{"$f":"IF(E32=\"\",\"ﾝﾝ\"&C32,IF(J32=\"○\",\"ｦ\"&E32,IF(OR(F32=\"\",G32>0),E32,\"ﾝ\"&E32)))","v":"ﾝﾝ26"},{"$f":"ROW()-6","v":26},null,null,null,null,null,null,null,null,null,null,null,null,"","","","","",""]
[null,{"$f":"IF(E33=\"\",\"ﾝﾝ\"&C33,IF(J33=\"○\",\"ｦ\"&E33,IF(OR(F33=\"\",G33>0),E33,\"ﾝ\"&E33)))","v":"ﾝﾝ27"},{"$f":"ROW()-6","v":27},null,null,null,null,null,null,null,null,null,null,null,null,"","","","","",""]
[null,{"$f":"IF(E34=\"\",\"ﾝﾝ\"&C34,IF(J34=\"○\",\"ｦ\"&E34,IF(OR(F34=\"\",G34>0),E34,\"ﾝ\"&E34)))","v":"ﾝﾝ28"},{"$f":"ROW()-6","v":28},null,null,null,null,null,null,null,null,null,null,null,null,"","","","","",""]
[null,{"$f":"IF(E35=\"\",\"ﾝﾝ\"&C35,IF(J35=\"○\",\"ｦ\"&E35,IF(OR(F35=\"\",G35>0),E35,\"ﾝ\"&E35)))","v":"ﾝﾝ29"},{"$f":"ROW()-6","v":29},null,null,null,null,null,null,null,null,null,null,null,null,"","","","","",""]
[null,{"$f":"IF(E36=\"\",\"ﾝﾝ\"&C36,IF(J36=\"○\",\"ｦ\"&E36,IF(OR(F36=\"\",G36>0),E36,\"ﾝ\"&E36)))","v":"ﾝﾝ30"},{"$f":"ROW()-6","v":30},null,null,null,null,null,null,null,null,null,null,null,null,"","","","","",""]
[null,{"$f":"IF(E37=\"\",\"ﾝﾝ\"&C37,IF(J37=\"○\",\"ｦ\"&E37,IF(OR(F37=\"\",G37>0),E37,\"ﾝ\"&E37)))","v":"ﾝﾝ31"},{"$f":"ROW()-6","v":31},null,null,null,null,null,null,null,null,null,null,null,null,"","","","","",""]
[null,{"$f":"IF(E38=\"\",\"ﾝﾝ\"&C38,IF(J38=\"○\",\"ｦ\"&E38,IF(OR(F38=\"\",G38>0),E38,\"ﾝ\"&E38)))","v":"ﾝﾝ32"},{"$f":"ROW()-6","v":32},null,null,null,null,null,null,null,null,null,null,null,null,"","","","","",""]
[null,{"$f":"IF(E39=\"\",\"ﾝﾝ\"&C39,IF(J39=\"○\",\"ｦ\"&E39,IF(OR(F39=\"\",G39>0),E39,\"ﾝ\"&E39)))","v":"ﾝﾝ33"},{"$f":"ROW()-6","v":33},null,null,null,null,null,null,null,null,null,null,null,null,"","","",{"$f":"IF(M39=\"\",\"\",D39&\"　\")","v":""},"",""]
[null,{"$f":"IF(E40=\"\",\"ﾝﾝ\"&C40,IF(J40=\"○\",\"ｦ\"&E40,IF(OR(F40=\"\",G40>0),E40,\"ﾝ\"&E40)))","v":"ﾝﾝ34"},{"$f":"ROW()-6","v":34},null,null,null,null,null,null,null,null,null,null,null,null,"","","","","",""]
[null,{"$f":"IF(E41=\"\",\"ﾝﾝ\"&C41,IF(J41=\"○\",\"ｦ\"&E41,IF(OR(F41=\"\",G41>0),E41,\"ﾝ\"&E41)))","v":"ﾝﾝ35"},{"$f":"ROW()-6","v":35},null,null,null,null,null,null,null,null,null,null,null,null,"","","","","",""]
[null,{"$f":"IF(E42=\"\",\"ﾝﾝ\"&C42,IF(J42=\"○\",\"ｦ\"&E42,IF(OR(F42=\"\",G42>0),E42,\"ﾝ\"&E42)))","v":"ﾝﾝ36"},{"$f":"ROW()-6","v":36},null,null,null,null,null,null,null,null,null,null,null,null,"","","","","",""]
[null,{"$f":"IF(E43=\"\",\"ﾝﾝ\"&C43,IF(J43=\"○\",\"ｦ\"&E43,IF(OR(F43=\"\",G43>0),E43,\"ﾝ\"&E43)))","v":"ﾝﾝ37"},{"$f":"ROW()-6","v":37},null,null,null,null,null,null,null,null,null,null,null,null,"","","","","",""]
[null,{"$f":"IF(E44=\"\",\"ﾝﾝ\"&C44,IF(J44=\"○\",\"ｦ\"&E44,IF(OR(F44=\"\",G44>0),E44,\"ﾝ\"&E44)))","v":"ﾝﾝ38"},{"$f":"ROW()-6","v":38},null,null,null,null,null,null,null,null,null,null,null,null,"","","","","",""]
[null,{"$f":"IF(E45=\"\",\"ﾝﾝ\"&C45,IF(J45=\"○\",\"ｦ\"&E45,IF(OR(F45=\"\",G45>0),E45,\"ﾝ\"&E45)))","v":"ﾝﾝ39"},{"$f":"ROW()-6","v":39},null,null,null,null,null,null,null,null,null,null,null,null,"","","","","",""]
[null,{"$f":"IF(E46=\"\",\"ﾝﾝ\"&C46,IF(J46=\"○\",\"ｦ\"&E46,IF(OR(F46=\"\",G46>0),E46,\"ﾝ\"&E46)))","v":"ﾝﾝ40"},{"$f":"ROW()-6","v":40},null,null,null,null,null,null,null,null,null,null,null,null,"","","","","",""]
[null,{"$f":"IF(E47=\"\",\"ﾝﾝ\"&C47,IF(J47=\"○\",\"ｦ\"&E47,IF(OR(F47=\"\",G47>0),E47,\"ﾝ\"&E47)))","v":"ﾝﾝ41"},{"$f":"ROW()-6","v":41},null,null,null,null,null,null,null,null,null,null,null,null,"","","","","",""]
[null,{"$f":"IF(E48=\"\",\"ﾝﾝ\"&C48,IF(J48=\"○\",\"ｦ\"&E48,IF(OR(F48=\"\",G48>0),E48,\"ﾝ\"&E48)))","v":"ﾝﾝ42"},{"$f":"ROW()-6","v":42},null,null,null,null,null,null,null,null,null,null,null,null,"","","","","",""]
[null,{"$f":"IF(E49=\"\",\"ﾝﾝ\"&C49,IF(J49=\"○\",\"ｦ\"&E49,IF(OR(F49=\"\",G49>0),E49,\"ﾝ\"&E49)))","v":"ﾝﾝ43"},{"$f":"ROW()-6","v":43},null,null,null,null,null,null,null,null,null,null,null,null,"","","","","",""]
[null,{"$f":"IF(E50=\"\",\"ﾝﾝ\"&C50,IF(J50=\"○\",\"ｦ\"&E50,IF(OR(F50=\"\",G50>0),E50,\"ﾝ\"&E50)))","v":"ﾝﾝ44"},{"$f":"ROW()-6","v":44},null,null,null,null,null,null,null,null,null,null,null,null,"","","","","",""]
[null,{"$f":"IF(E51=\"\",\"ﾝﾝ\"&C51,IF(J51=\"○\",\"ｦ\"&E51,IF(OR(F51=\"\",G51>0),E51,\"ﾝ\"&E51)))","v":"ﾝﾝ45"},{"$f":"ROW()-6","v":45},null,null,null,null,null,null,null,null,null,null,null,null,"","","","","",""]
[null,{"$f":"IF(E52=\"\",\"ﾝﾝ\"&C52,IF(J52=\"○\",\"ｦ\"&E52,IF(OR(F52=\"\",G52>0),E52,\"ﾝ\"&E52)))","v":"ﾝﾝ46"},{"$f":"ROW()-6","v":46},null,null,null,null,null,null,null,null,null,null,null,null,"","","","","",""]
[null,{"$f":"IF(E53=\"\",\"ﾝﾝ\"&C53,IF(J53=\"○\",\"ｦ\"&E53,IF(OR(F53=\"\",G53>0),E53,\"ﾝ\"&E53)))","v":"ﾝﾝ47"},{"$f":"ROW()-6","v":47},null,null,null,null,null,null,null,null,null,null,null,null,"","","","","",""]
[null,{"$f":"IF(E54=\"\",\"ﾝﾝ\"&C54,IF(J54=\"○\",\"ｦ\"&E54,IF(OR(F54=\"\",G54>0),E54,\"ﾝ\"&E54)))","v":"ﾝﾝ48"},{"$f":"ROW()-6","v":48},null,null,null,null,null,null,null,null,null,null,null,null,"","","","","",""]
[null,{"$f":"IF(E55=\"\",\"ﾝﾝ\"&C55,IF(J55=\"○\",\"ｦ\"&E55,IF(OR(F55=\"\",G55>0),E55,\"ﾝ\"&E55)))","v":"ﾝﾝ49"},{"$f":"ROW()-6","v":49},null,null,null,null,null,null,null,null,null,null,null,null,"","","","","",""]
[null,{"$f":"IF(E56=\"\",\"ﾝﾝ\"&C56,IF(J56=\"○\",\"ｦ\"&E56,IF(OR(F56=\"\",G56>0),E56,\"ﾝ\"&E56)))","v":"ﾝﾝ50"},{"$f":"ROW()-6","v":50},null,null,null,null,null,null,null,null,null,null,null,null,"","","","","",""]
[null,{"$f":"IF(E57=\"\",\"ﾝﾝ\"&C57,IF(J57=\"○\",\"ｦ\"&E57,IF(OR(F57=\"\",G57>0),E57,\"ﾝ\"&E57)))","v":"ﾝﾝ51"},{"$f":"ROW()-6","v":51},null,null,null,null,null,null,null,null,null,null,null,null,"","","","","",""]
[null,{"$f":"IF(E58=\"\",\"ﾝﾝ\"&C58,IF(J58=\"○\",\"ｦ\"&E58,IF(OR(F58=\"\",G58>0),E58,\"ﾝ\"&E58)))","v":"ﾝﾝ52"},{"$f":"ROW()-6","v":52},null,null,null,null,null,null,null,null,null,null,null,null,"","","","","",""]
[null,{"$f":"IF(E59=\"\",\"ﾝﾝ\"&C59,IF(J59=\"○\",\"ｦ\"&E59,IF(OR(F59=\"\",G59>0),E59,\"ﾝ\"&E59)))","v":"ﾝﾝ53"},{"$f":"ROW()-6","v":53},null,null,null,null,null,null,null,null,null,null,null,null,"","","","","",""]
[null,{"$f":"IF(E60=\"\",\"ﾝﾝ\"&C60,IF(J60=\"○\",\"ｦ\"&E60,IF(OR(F60=\"\",G60>0),E60,\"ﾝ\"&E60)))","v":"ﾝﾝ54"},{"$f":"ROW()-6","v":54},null,null,null,null,null,null,null,null,null,null,null,null,"","","","","",""]
[null,{"$f":"IF(E61=\"\",\"ﾝﾝ\"&C61,IF(J61=\"○\",\"ｦ\"&E61,IF(OR(F61=\"\",G61>0),E61,\"ﾝ\"&E61)))","v":"ﾝﾝ55"},{"$f":"ROW()-6","v":55},null,null,null,null,null,null,null,null,null,null,null,null,"","","","","",""]
[null,{"$f":"IF(E62=\"\",\"ﾝﾝ\"&C62,IF(J62=\"○\",\"ｦ\"&E62,IF(OR(F62=\"\",G62>0),E62,\"ﾝ\"&E62)))","v":"ﾝﾝ56"},{"$f":"ROW()-6","v":56},null,null,null,null,null,null,null,null,null,null,null,null,"","","","","",""]
[null,{"$f":"IF(E63=\"\",\"ﾝﾝ\"&C63,IF(J63=\"○\",\"ｦ\"&E63,IF(OR(F63=\"\",G63>0),E63,\"ﾝ\"&E63)))","v":"ﾝﾝ57"},{"$f":"ROW()-6","v":57},null,null,null,null,null,null,null,null,null,null,null,null,"","","","","",""]
[null,{"$f":"IF(E64=\"\",\"ﾝﾝ\"&C64,IF(J64=\"○\",\"ｦ\"&E64,IF(OR(F64=\"\",G64>0),E64,\"ﾝ\"&E64)))","v":"ﾝﾝ58"},{"$f":"ROW()-6","v":58},null,null,null,null,null,null,null,null,null,null,null,null,"","","","","",""]
[null,{"$f":"IF(E65=\"\",\"ﾝﾝ\"&C65,IF(J65=\"○\",\"ｦ\"&E65,IF(OR(F65=\"\",G65>0),E65,\"ﾝ\"&E65)))","v":"ﾝﾝ59"},{"$f":"ROW()-6","v":59},null,null,null,null,null,null,null,null,null,null,null,null,"","","","","",""]
[null,{"$f":"IF(E66=\"\",\"ﾝﾝ\"&C66,IF(J66=\"○\",\"ｦ\"&E66,IF(OR(F66=\"\",G66>0),E66,\"ﾝ\"&E66)))","v":"ﾝﾝ60"},{"$f":"ROW()-6","v":60},null,null,null,null,null,null,null,null,null,null,null,null,"","","","","",""]
[null,{"$f":"IF(E67=\"\",\"ﾝﾝ\"&C67,IF(J67=\"○\",\"ｦ\"&E67,IF(OR(F67=\"\",G67>0),E67,\"ﾝ\"&E67)))","v":"ﾝﾝ61"},{"$f":"ROW()-6","v":61},null,null,null,null,null,null,null,null,null,null,null,null,"","","","","",""]
[null,{"$f":"IF(E68=\"\",\"ﾝﾝ\"&C68,IF(J68=\"○\",\"ｦ\"&E68,IF(OR(F68=\"\",G68>0),E68,\"ﾝ\"&E68)))","v":"ﾝﾝ62"},{"$f":"ROW()-6","v":62},null,null,null,null,null,null,null,null,null,null,null,null,"","","","","",""]
[null,{"$f":"IF(E69=\"\",\"ﾝﾝ\"&C69,IF(J69=\"○\",\"ｦ\"&E69,IF(OR(F69=\"\",G69>0),E69,\"ﾝ\"&E69)))","v":"ﾝﾝ63"},{"$f":"ROW()-6","v":63},null,null,null,null,null,null,null,null,null,null,null,null,"","","","","",""]
[null,{"$f":"IF(E70=\"\",\"ﾝﾝ\"&C70,IF(J70=\"○\",\"ｦ\"&E70,IF(OR(F70=\"\",G70>0),E70,\"ﾝ\"&E70)))","v":"ﾝﾝ64"},{"$f":"ROW()-6","v":64},null,null,null,null,null,null,null,null,null,null,null,null,"","","","","",""]
[null,{"$f":"IF(E71=\"\",\"ﾝﾝ\"&C71,IF(J71=\"○\",\"ｦ\"&E71,IF(OR(F71=\"\",G71>0),E71,\"ﾝ\"&E71)))","v":"ﾝﾝ65"},{"$f":"ROW()-6","v":65},null,null,null,null,null,null,null,null,null,null,null,null,{"$f":"IF(F71=\"\",\"\",IF(F71*G71>0,\"\",D71&\"　\"))","v":""},"","",{"$f":"IF(M71=\"\",\"\",D71&\"　\")","v":""},"",""]
[null,{"$f":"IF(E72=\"\",\"ﾝﾝ\"&C72,IF(J72=\"○\",\"ｦ\"&E72,IF(OR(F72=\"\",G72>0),E72,\"ﾝ\"&E72)))","v":"ﾝﾝ66"},{"$f":"ROW()-6","v":66},null,null,null,null,null,null,null,null,null,null,null,null,"",{"$f":"IF(K72=\"\",\"\",D72&\"　\"&K72&\"℃\"&\"　\")","v":""},{"$f":"IF(L72=\"\",\"\",D72&\"　\")","v":""},"",{"$f":"IF(N72=\"\",\"\",D72&\"　\")","v":""},{"$f":"IF(O72=\"\",\"\",D72&\"　\")","v":""}]
[null,{"$f":"IF(E73=\"\",\"ﾝﾝ\"&C73,IF(J73=\"○\",\"ｦ\"&E73,IF(OR(F73=\"\",G73>0),E73,\"ﾝ\"&E73)))","v":"ﾝﾝ67"},{"$f":"ROW()-6","v":67},null,null,null,null,null,null,null,null,null,null,null,null,"","","","","",""]
[null,{"$f":"IF(E74=\"\",\"ﾝﾝ\"&C74,IF(J74=\"○\",\"ｦ\"&E74,IF(OR(F74=\"\",G74>0),E74,\"ﾝ\"&E74)))","v":"ﾝﾝ68"},{"$f":"ROW()-6","v":68},null,null,null,null,null,null,null,null,null,null,null,null,"","","","","",""]
[null,{"$f":"IF(E75=\"\",\"ﾝﾝ\"&C75,IF(J75=\"○\",\"ｦ\"&E75,IF(OR(F75=\"\",G75>0),E75,\"ﾝ\"&E75)))","v":"ﾝﾝ69"},{"$f":"ROW()-6","v":69},null,null,null,null,null,null,null,null,null,null,null,null,"","","","","",""]
[null,{"$f":"IF(E76=\"\",\"ﾝﾝ\"&C76,IF(J76=\"○\",\"ｦ\"&E76,IF(OR(F76=\"\",G76>0),E76,\"ﾝ\"&E76)))","v":"ﾝﾝ70"},{"$f":"ROW()-6","v":70},null,null,null,null,null,null,null,null,null,null,null,null,"","","","","",""]
[null,{"$f":"IF(E77=\"\",\"ﾝﾝ\"&C77,IF(J77=\"○\",\"ｦ\"&E77,IF(OR(F77=\"\",G77>0),E77,\"ﾝ\"&E77)))","v":"ﾝﾝ71"},{"$f":"ROW()-6","v":71},null,null,null,null,null,null,null,null,null,null,null,null,"","","","","",""]
[null,{"$f":"IF(E78=\"\",\"ﾝﾝ\"&C78,IF(J78=\"○\",\"ｦ\"&E78,IF(OR(F78=\"\",G78>0),E78,\"ﾝ\"&E78)))","v":"ﾝﾝ72"},{"$f":"ROW()-6","v":72},null,null,null,null,null,null,null,null,null,null,null,null,"","","","","",""]
[null,{"$f":"IF(E79=\"\",\"ﾝﾝ\"&C79,IF(J79=\"○\",\"ｦ\"&E79,IF(OR(F79=\"\",G79>0),E79,\"ﾝ\"&E79)))","v":"ﾝﾝ73"},{"$f":"ROW()-6","v":73},null,null,null,null,null,null,null,null,null,null,null,null,"","","","","",""]
[null,{"$f":"IF(E80=\"\",\"ﾝﾝ\"&C80,IF(J80=\"○\",\"ｦ\"&E80,IF(OR(F80=\"\",G80>0),E80,\"ﾝ\"&E80)))","v":"ﾝﾝ74"},{"$f":"ROW()-6","v":74},null,null,null,null,null,null,null,null,null,null,null,null,"","","","","",""]
[null,{"$f":"IF(E81=\"\",\"ﾝﾝ\"&C81,IF(J81=\"○\",\"ｦ\"&E81,IF(OR(F81=\"\",G81>0),E81,\"ﾝ\"&E81)))","v":"ﾝﾝ75"},{"$f":"ROW()-6","v":75},null,null,null,null,null,null,null,null,null,null,null,null,"","","","","",""]
[null,{"$f":"IF(E82=\"\",\"ﾝﾝ\"&C82,IF(J82=\"○\",\"ｦ\"&E82,IF(OR(F82=\"\",G82>0),E82,\"ﾝ\"&E82)))","v":"ﾝﾝ76"},{"$f":"ROW()-6","v":76},null,null,null,null,null,null,null,null,null,null,null,null,"","","","","",""]
[null,{"$f":"IF(E83=\"\",\"ﾝﾝ\"&C83,IF(J83=\"○\",\"ｦ\"&E83,IF(OR(F83=\"\",G83>0),E83,\"ﾝ\"&E83)))","v":"ﾝﾝ77"},{"$f":"ROW()-6","v":77},null,null,null,null,null,null,null,null,null,null,null,null,"","","","","",""]
[null,{"$f":"IF(E84=\"\",\"ﾝﾝ\"&C84,IF(J84=\"○\",\"ｦ\"&E84,IF(OR(F84=\"\",G84>0),E84,\"ﾝ\"&E84)))","v":"ﾝﾝ78"},{"$f":"ROW()-6","v":78},null,null,null,null,null,null,null,null,null,null,null,null,{"$f":"IF(F84=\"\",\"\",IF(F84*G84>0,\"\",D84&\"　\"))","v":""},"","","","",""]
[null,{"$f":"IF(E85=\"\",\"ﾝﾝ\"&C85,IF(J85=\"○\",\"ｦ\"&E85,IF(OR(F85=\"\",G85>0),E85,\"ﾝ\"&E85)))","v":"ﾝﾝ79"},{"$f":"ROW()-6","v":79},null,null,null,null,null,null,null,null,null,null,null,null,{"$f":"IF(F85=\"\",\"\",IF(F85*G85>0,\"\",D85&\"　\"))","v":""},"","","","",""]
[null,{"$f":"IF(E86=\"\",\"ﾝﾝ\"&C86,IF(J86=\"○\",\"ｦ\"&E86,IF(OR(F86=\"\",G86>0),E86,\"ﾝ\"&E86)))","v":"ﾝﾝ80"},{"$f":"ROW()-6","v":80},null,null,null,null,null,null,null,null,null,null,null,null,"","","","","",""]
[null,{"$f":"IF(E87=\"\",\"ﾝﾝ\"&C87,IF(J87=\"○\",\"ｦ\"&E87,IF(OR(F87=\"\",G87>0),E87,\"ﾝ\"&E87)))","v":"ﾝﾝ81"},{"$f":"ROW()-6","v":81},null,null,null,null,null,null,null,null,null,null,null,null,"","","","","",""]
[null,{"$f":"IF(E88=\"\",\"ﾝﾝ\"&C88,IF(J88=\"○\",\"ｦ\"&E88,IF(OR(F88=\"\",G88>0),E88,\"ﾝ\"&E88)))","v":"ﾝﾝ82"},{"$f":"ROW()-6","v":82},null,null,null,null,null,null,null,null,null,null,null,null,"","","","","",""]
[null,{"$f":"IF(E89=\"\",\"ﾝﾝ\"&C89,IF(J89=\"○\",\"ｦ\"&E89,IF(OR(F89=\"\",G89>0),E89,\"ﾝ\"&E89)))","v":"ﾝﾝ83"},{"$f":"ROW()-6","v":83},null,null,null,null,null,null,null,null,null,null,null,null,"","","","","",""]
[null,{"$f":"IF(E90=\"\",\"ﾝﾝ\"&C90,IF(J90=\"○\",\"ｦ\"&E90,IF(OR(F90=\"\",G90>0),E90,\"ﾝ\"&E90)))","v":"ﾝﾝ84"},{"$f":"ROW()-6","v":84},null,null,null,null,null,null,null,null,null,null,null,null,"","","","","",""]
[null,{"$f":"IF(E91=\"\",\"ﾝﾝ\"&C91,IF(J91=\"○\",\"ｦ\"&E91,IF(OR(F91=\"\",G91>0),E91,\"ﾝ\"&E91)))","v":"ﾝﾝ85"},{"$f":"ROW()-6","v":85},null,null,null,null,null,null,null,null,null,null,null,null,"","","","","",""]
[null,{"$f":"IF(E92=\"\",\"ﾝﾝ\"&C92,IF(J92=\"○\",\"ｦ\"&E92,IF(OR(F92=\"\",G92>0),E92,\"ﾝ\"&E92)))","v":"ﾝﾝ86"},{"$f":"ROW()-6","v":86},null,null,null,null,null,null,null,null,null,null,null,null,"","","","","",""]
[null,{"$f":"IF(E93=\"\",\"ﾝﾝ\"&C93,IF(J93=\"○\",\"ｦ\"&E93,IF(OR(F93=\"\",G93>0),E93,\"ﾝ\"&E93)))","v":"ﾝﾝ87"},{"$f":"ROW()-6","v":87},null,null,null,null,null,null,null,null,null,null,null,null,"","","","","",""]
[null,{"$f":"IF(E94=\"\",\"ﾝﾝ\"&C94,IF(J94=\"○\",\"ｦ\"&E94,IF(OR(F94=\"\",G94>0),E94,\"ﾝ\"&E94)))","v":"ﾝﾝ88"},{"$f":"ROW()-6","v":88},null,null,null,null,null,null,null,null,null,null,null,null,"","","","","",""]
[null,{"$f":"IF(E95=\"\",\"ﾝﾝ\"&C95,IF(J95=\"○\",\"ｦ\"&E95,IF(OR(F95=\"\",G95>0),E95,\"ﾝ\"&E95)))","v":"ﾝﾝ89"},{"$f":"ROW()-6","v":89},null,null,null,null,null,null,null,null,null,null,null,null,"","","","","",""]
[null,{"$f":"IF(E96=\"\",\"ﾝﾝ\"&C96,IF(J96=\"○\",\"ｦ\"&E96,IF(OR(F96=\"\",G96>0),E96,\"ﾝ\"&E96)))","v":"ﾝﾝ90"},{"$f":"ROW()-6","v":90},null,null,null,null,null,null,null,null,null,null,null,null,"","","","","",""]
[null,{"$f":"IF(E97=\"\",\"ﾝﾝ\"&C97,IF(J97=\"○\",\"ｦ\"&E97,IF(OR(F97=\"\",G97>0),E97,\"ﾝ\"&E97)))","v":"ﾝﾝ91"},{"$f":"ROW()-6","v":91},null,null,null,null,null,null,null,null,null,null,null,null,"",null,null,null,"",""]
[null,{"$f":"IF(E98=\"\",\"ﾝﾝ\"&C98,IF(J98=\"○\",\"ｦ\"&E98,IF(OR(F98=\"\",G98>0),E98,\"ﾝ\"&E98)))","v":"ﾝﾝ92"},{"$f":"ROW()-6","v":92},null,null,null,null,null,null,null,null,null,null,null,null,"",null,null,null,"",""]
[null,{"$f":"IF(E99=\"\",\"ﾝﾝ\"&C99,IF(J99=\"○\",\"ｦ\"&E99,IF(OR(F99=\"\",G99>0),E99,\"ﾝ\"&E99)))","v":"ﾝﾝ93"},{"$f":"ROW()-6","v":93},null,null,null,null,null,null,null,null,null,null,null,null,"",null,null,null,"",""]
[null,{"$f":"IF(E100=\"\",\"ﾝﾝ\"&C100,IF(J100=\"○\",\"ｦ\"&E100,IF(OR(F100=\"\",G100>0),E100,\"ﾝ\"&E100)))","v":"ﾝﾝ94"},{"$f":"ROW()-6","v":94},null,null,null,null,null,null,null,null,null,null,null,null,"",null,null,null,"",""]
[null,{"$f":"IF(E101=\"\",\"ﾝﾝ\"&C101,IF(J101=\"○\",\"ｦ\"&E101,IF(OR(F101=\"\",G101>0),E101,\"ﾝ\"&E101)))","v":"ﾝﾝ95"},{"$f":"ROW()-6","v":95},null,null,null,null,null,null,null,null,null,null,null,null,"",null,null,null,"",""]
[null,{"$f":"IF(E102=\"\",\"ﾝﾝ\"&C102,IF(J102=\"○\",\"ｦ\"&E102,IF(OR(F102=\"\",G102>0),E102,\"ﾝ\"&E102)))","v":"ﾝﾝ96"},{"$f":"ROW()-6","v":96},null,null,null,null,null,null,null,null,null,null,null,null,"",null,null,null,"",""]
[null,{"$f":"IF(E103=\"\",\"ﾝﾝ\"&C103,IF(J103=\"○\",\"ｦ\"&E103,IF(OR(F103=\"\",G103>0),E103,\"ﾝ\"&E103)))","v":"ﾝﾝ97"},{"$f":"ROW()-6","v":97},null,null,null,null,null,null,null,null,null,null,null,null,"",null,null,null,"",""]
[null,{"$f":"IF(E104=\"\",\"ﾝﾝ\"&C104,IF(J104=\"○\",\"ｦ\"&E104,IF(OR(F104=\"\",G104>0),E104,\"ﾝ\"&E104)))","v":"ﾝﾝ98"},{"$f":"ROW()-6","v":98},null,null,null,null,null,null,null,null,null,null,null,null,"",null,null,null,"",""]
[null,{"$f":"IF(E105=\"\",\"ﾝﾝ\"&C105,IF(J105=\"○\",\"ｦ\"&E105,IF(OR(F105=\"\",G105>0),E105,\"ﾝ\"&E105)))","v":"ﾝﾝ99"},{"$f":"ROW()-6","v":99},null,null,null,null,null,null,null,null,null,null,null,null,"",null,null,null,"",""]
[null,{"$f":"IF(E106=\"\",\"ﾝﾝ\"&C106,IF(J106=\"○\",\"ｦ\"&E106,IF(OR(F106=\"\",G106>0),E106,\"ﾝ\"&E106)))","v":"ﾝﾝ100"},{"$f":"ROW()-6","v":100},null,null,null,null,null,null,null,null,null,null,null,null,"",null,null,null,"",""]

{"sheet":"基本情報","index":1,"n_rows":382,"n_cols":68,"rows_kept":382,"cut":false,"hidden":false,"merged":[[70,5,70,11],[71,5,71,11],[72,5,72,11],[73,5,73,11],[86,5,86,11],[87,5,87,11],[92,5,92,11],[93,5,93,11],[88,5,88,11],[89,5,89,11],[90,5,90,11],[91,5,91,11],[80,5,80,11],[81,5,81,11],[82,5,82,11],[83,5,83,11],[84,5,84,11],[85,5,85,11],[116,4,117,4],[116,8,118,8],[116,9,119,11],[118,4,119,4],[118,5,119,7],[113,4,114,4],[113,8,114,8],[113,9,115,11],[115,4,115,5],[104,4,104,5],[104,6,104,7],[104,8,106,8],[105,4,107,4],[105,5,106,7],[107,6,107,7],[107,8,107,11],[50,5,50,11],[51,5,51,11],[52,5,52,11],[53,5,53,11],[54,5,54,11],[55,5,55,11],[62,5,62,11],[63,5,63,11],[64,5,64,11],[65,5,65,11],[66,5,66,11],[67,5,67,11],[56,5,56,11],[57,5,57,11],[58,5,58,11],[59,5,59,11],[60,5,60,11],[111,4,111,5],[111,9,111,11],[112,4,112,5],[112,9,112,11],[108,4,108,5],[108,6,108,7],[109,4,109,5],[109,6,109,7],[110,4,110,5],[110,6,110,7],[40,4,41,4],[40,8,42,8],[40,9,43,11],[42,4,43,4],[42,5,43,7],[102,9,103,9],[102,10,103,10],[102,11,103,11],[101,4,102,8],[44,5,44,11],[45,5,45,11],[46,5,46,11],[47,5,47,11],[48,5,48,11],[49,5,49,11],[61,5,61,11],[74,5,74,11],[75,5,75,11],[76,5,76,11],[77,5,77,11],[78,5,78,11],[79,5,79,11],[68,5,68,11],[69,5,69,11],[35,4,35,5],[35,9,35,11],[36,4,36,5],[36,9,36,11],[37,4,38,4],[37,8,38,8],[37,9,39,11],[39,4,39,5],[31,8,31,11],[32,4,32,5],[32,6,32,7],[33,4,33,5],[33,6,33,7],[34,4,34,5],[34,6,34,7],[25,4,26,7],[26,9,27,9],[26,10,27,10],[26,11,27,11],[28,4,28,5],[28,6,28,7],[28,8,30,8],[29,4,31,4],[29,5,30,7],[31,6,31,7],[4,4,5,7],[10,6,10,7],[15,4,15,5],[14,4,14,5],[13,4,13,5],[11,4,11,5],[11,6,11,7],[8,4,10,4],[8,5,9,7],[12,4,12,5],[12,6,12,7],[13,6,13,7],[19,4,20,4],[16,4,17,4],[18,4,18,5],[21,4,22,4],[21,5,22,7],[19,8,21,8],[16,8,17,8],[16,9,18,11],[7,4,7,5],[7,6,7,7],[5,43,5,51],[5,62,5,63],[14,9,14,11],[15,9,15,11],[10,8,10,11],[7,8,9,8],[6,13,6,14],[16,13,24,13],[19,9,22,11],[5,10,6,10],[5,11,6,11],[5,9,6,9]]}
[]
[null,null,null,null,"今日の日付",null,null,null,null,null,null,null,null,null,null,null,null,null,null,null,null,null,null,null,null,null,null,null,null,null,null,null,null,null,null,null,null,null,null,null,null,null,null,null,null,null,null,null,null,null,null,null,null,null,null,null,null,null,null,null,null,null,null,null,null,null,{"$f":"BN4-BO4","v":0}]
[null,null,null,null,{"$f":"YEAR(NOW())","v":2012},{"$f":"MONTH(NOW())","v":6},{"$f":"DAY(NOW())","v":6}]
[null,null,null,null,null,null,null,null,null,null,null,null,null,null,null,null,null,null,null,null,null,null,null,null,null,null,null,null,null,null,null,null,null,null,null,null,null,null,null,null,null,null,null,null,null,null,null,null,null,null,null,null,null,null,null,null,null,null,null,null,null,null,null,null,null,{"$f":"ROUND(S7*10000+T7*100+U7,0)","v":0},{"$f":"ROUND(IF(看護日誌!F2=0,0,SUM(看護日誌!G6:G60)/看護日誌!F2),0)","v":0},{"$f":"IF(BN4-BO4=0,1,0)","v":1}]
[null,null,null,null,"看護日誌",null,null,null,null,"記入者","施設長","医師"]
[null,null,null,null,null,null,null,null,null,{"$f":"O16","v":0},null,null,null,null,null,null,null,null,"年","月","日","在籍入居者数","入院","小計","帰宅（外泊）","ショートステイ","現在人数","移動状況","担送","車椅子","歩行介助","独歩","経鼻","胃瘻","移動状況","担送","車椅子","歩行介助","独歩","経鼻","胃瘻","緩下剤","記入者","勤務者",null,null,null,null,null,null,null,null,"点眼","褥瘡処置","ｲﾝｼｭﾘﾝ\n注射","創処置","軟膏","ｴﾙｼﾄﾆﾝ\n筋注","点滴","IVH","発熱者",null,"就寝前薬"]
[null,null,null,null,null,null,null,{"$f":"IF(E7*F7*G7=0,\"\",DATE(E7,F7,G7))","v":""},null,null,null,null,null,"看護師名簿（右クリック）",null,null,null,null,{"$f":"$E$7","v":0},{"$f":"$F$7","v":0},{"$f":"$G$7","v":0},{"$f":"$G$8","v":0},{"$f":"$F$9","v":""},{"$f":"$G$11","v":0},{"$f":"$G$12","v":0},{"$f":"$G$13","v":0},{"$f":"$G$14","v":0},{"$f":"$G$15","v":"短期　0"},{"$f":"$G$16","v":0},{"$f":"$G$17","v":0},{"$f":"$G$18","v":0},{"$f":"$G$19","v":0},{"$f":"$G$20","v":0},{"$f":"$G$21","v":0},{"$f":"$H$15","v":"入所　0"},{"$f":"$H$16","v":0},{"$f":"$H$17","v":0},{"$f":"$H$18","v":0},{"$f":"$H$19","v":0},{"$f":"$H$20","v":0},{"$f":"$H$21","v":0},{"$f":"$F$22","v":""},{"$f":"$J$6","v":0},{"$f":"$J$8","v":0},{"$f":"$K$8","v":0},{"$f":"$L$8","v":0},{"$f":"$J$9","v":0},{"$f":"$K$9","v":0},{"$f":"$L$9","v":0},{"$f":"$J$10","v":0},{"$f":"$K$10","v":0},{"$f":"$L$10","v":0},{"$f":"$J$12","v":0},{"$f":"$J$13","v":0},{"$f":"$J$14","v":0},{"$f":"$L$12","v":0},{"$f":"$L$13","v":0},{"$f":"$L$14","v":0},{"$f":"$J$15","v":""},{"$f":"$J$16","v":""},{"$f":"$I$19","v":0},{"$f":"$J$17","v":""},{"$f":"$I$23","v":0},{"$f":"$J$20","v":""}]
[null,null,null,null,"在籍入居者数",null,null,null,"勤務者",{"$f":"O17","v":0},{"$f":"O18","v":0},{"$f":"O19","v":0}]
[null,null,null,null,"入院",{"$f":"名簿!P2&名簿!P3&名簿!P4&名簿!P5","v":""},null,null,null,{"$f":"O20","v":0},{"$f":"O21","v":0},{"$f":"O22","v":0},null,null,null,null,null,null,1,2,3,4,5,6,7,8,9,10,11,12,13,14,15,16,17,18,19,20,21,22,23,24,25,26,27,28,29,30,31,32,33,34,35,36,37,38,39,40,41,42,43,44,45,46]
[null,null,null,null,null,null,null,null,null,{"$f":"O23","v":0},{"$f":"O24","v":0},{"$f":"O25","v":0},null,null,null,null,null,"日付番号","年","月","日","在籍入居者数","入院","小計","帰宅（外泊）","ショートステイ","現在人数","移動状況","担送","車椅子","歩行介助","独歩","経鼻","胃瘻","移動状況","担送","車椅子","歩行介助","独歩","経鼻","胃瘻","緩下剤","記入者","勤務者",1,2,3,4,5,6,7,8,"点眼","褥瘡処置","ｲﾝｼｭﾘﾝ\n注射","創処置","軟膏","ｴﾙｼﾄﾆﾝ\n筋注","点滴","IVH","発熱者","発熱記録","就寝前薬","対象者"]
[null,null,null,null,null,"小計",{"$f":"100-COUNTIF(名簿!P7:P106,\"\")","v":0},null,"施設内治療（人数記入）",null,null,null,null,null,null,null,null,101]
[null,null,null,null,"帰宅（外泊）",null,null,null,"点眼",null,"創処置",null,null,null,null,null,null,102]
[null,null,null,null,"ショートステイ",null,null,null,"褥瘡処置",null,"軟膏",null,null,null,null,null,null,103]
[null,null,null,null,"現在人数",null,{"$f":"G8-G11-G12+G13","v":0},null,"ｲﾝｼｭﾘﾝ\n注射",null,"ｴﾙｼﾄﾆﾝ\n筋注",null,null,null,null,null,null,104]
[null,null,null,null,"移動状況",null,{"$f":"\"短期　\"&SUM(G16:G19)","v":"短期　0"},{"$f":"\"入所　\"&SUM(H16:H19)","v":"入所　0"},"点滴",{"$f":"名簿!T2&名簿!T3&名簿!T4","v":""},null,null,null,null,"看護師",null,null,105]
[null,null,null,null,"担送",null,null,null,"IVH",{"$f":"名簿!U2&名簿!U3&名簿!U4","v":""},null,null,null,"記入者",null,null,null,106]
[null,null,null,null,"護送","車椅子",null,null,"発熱者\n",{"$f":"名簿!Q2&名簿!Q3&名簿!Q4&名簿!Q5","v":""},null,null,null,"勤務者",null,null,null,107]
[null,null,null,null,null,"歩行介助",null,null,null,null,null,null,null,null,null,null,null,108]
[null,null,null,null,"独歩",null,null,null,{"$f":"COUNTA(名簿!K7:K106)","v":0},null,null,null,null,null,null,null,null,109]
[null,null,null,null,"経管栄養","経鼻",null,{"$f":"COUNTIF(名簿!H7:H106,\"○\")","v":0},"就寝前薬",{"$f":"名簿!R2&名簿!R3&名簿!R4&名簿!R5","v":""},null,null,null,null,null,null,null,110]
[null,null,null,null,null,"胃瘻",null,{"$f":"COUNTIF(名簿!I7:I106,\"○\")","v":0},null,null,null,null,null,null,null,null,null,111]
[null,null,null,null,"緩下剤",{"$f":"名簿!S2&名簿!S3&名簿!S4&名簿!S5","v":""},null,null,null,null,null,null,null,null,null,null,null,112]
[null,null,null,null,null,null,null,null,{"$f":"COUNTA(名簿!L7:L106)","v":0},null,null,null,null,null,null,null,null,113]
[null,null,null,null,null,null,null,null,null,null,null,null,null,null,null,null,null,114]
[null,null,null,null,null,null,null,null,null,null,null,null,null,null,null,null,null,115]
[null,null,null,null,"看護日誌",null,null,null,null,"記入者","施設長","医師",null,null,null,null,null,116]
[null,null,null,null,null,null,null,null,null,{"$f":"J6","v":0},null,null,null,null,null,null,null,117]
[null,null,null,null,{"$f":"E7","v":0},{"$f":"F7","v":0},{"$f":"G7","v":0},{"$f":"H7","v":""},null,null,null,null,null,null,null,null,null,118]
[null,null,null,null,"在籍入居者数",null,{"$f":"G8","v":0},0,"勤務者",{"$f":"J8","v":0},0,0,null,null,null,null,null,119]
[null,null,null,null,"入院",{"$f":"F9","v":""},0,0,null,0,0,0,null,null,null,null,null,120]
[null,null,null,null,null,{"$f":"F10","v":0},0,0,null,0,0,0,null,null,null,null,null,121]
[null,null,null,null,null,"小計",{"$f":"G11","v":0},0,"施設内治療（人数記入）",null,null,null,null,null,null,null,null,122]
[null,null,null,null,"帰宅（外泊）",null,0,0,"点眼",{"$f":"J12","v":0},"創処置",{"$f":"L12","v":0},null,null,null,null,null,123]
[null,null,null,null,"ショートステイ",null,0,0,"褥瘡処置",0,"軟膏",0,null,null,null,null,null,124]
[null,null,null,null,"現在人数",null,0,0,"ｲﾝｼｭﾘﾝ\n注射",0,"ｴﾙｼﾄﾆﾝ\n筋注",0,null,null,null,null,null,125]
[null,null,null,null,"移動状況",null,"短期　0","入所　0","点滴","",0,0,null,null,null,null,null,126]
[null,null,null,null,"担送",null,0,0,"IVH",{"$f":"J16","v":""},0,0,null,null,null,null,null,127]
[null,null,null,null,"護送","車椅子",0,0,"発熱者\n","",0,0,null,null,null,null,null,128]
[null,null,null,null,null,"歩行介助",0,0,null,0,0,0,null,null,null,null,null,129]
[null,null,null,null,"独歩",null,0,0,{"$f":"I19","v":0},0,0,0,null,null,null,null,null,130]
[null,null,null,null,"経管栄養","経鼻",0,0,"就寝前薬","",0,0,null,null,null,null,null,131]
[null,null,null,null,null,"胃瘻",0,0,null,0,0,0,null,null,null,null,null,201]
[null,null,null,null,"緩下剤",{"$f":"F22","v":""},0,0,null,0,0,0,null,null,null,null,null,202]
[null,null,null,null,null,0,0,0,{"$f":"I23","v":0},0,0,0,null,null,null,null,null,203,null,null,null,null,null,null,null,null,null,null,null,null,null,null,null,null,null,null,null,null,null,null,null,null,null,null,null,null,null,null,null,null,null,null,null,null,null,null,null,null,null,null,null,null,null,null,null,"お名前","フリガナ","記事（自由に訂正できます。）"]
[null,null,null,null,{"$f":"BN45","v":0},{"$f":"BP45","v":0},null,null,null,null,null,null,null,null,null,null,null,204,null,null,null,null,null,null,null,null,null,null,null,null,null,null,null,null,null,null,null,null,null,null,null,null,null,null,null,null,null,null,null,null,null,null,null,null,null,null,null,null,null,null,null,null,null,null,1]
[null,null,null,null,0,0,null,null,null,null,null,null,null,null,null,null,null,205,null,null,null,null,null,null,null,null,null,null,null,null,null,null,null,null,null,null,null,null,null,null,null,null,null,null,null,null,null,null,null,null,null,null,null,null,null,null,null,null,null,null,null,null,null,null,2]
[null,null,null,null,0,0,null,null,null,null,null,null,null,null,null,null,null,206,null,null,null,null,null,null,null,null,null,null,null,null,null,null,null,null,null,null,null,null,null,null,null,null,null,null,null,null,null,null,null,null,null,null,null,null,null,null,null,null,null,null,null,null,null,null,3]
[null,null,null,null,0,0,null,null,null,null,null,null,null,null,null,null,null,207,null,null,null,null,null,null,null,null,null,null,null,null,null,null,null,null,null,null,null,null,null,null,null,null,null,null,null,null,null,null,null,null,null,null,null,null,null,null,null,null,null,null,null,null,null,null,4]
[null,null,null,null,0,0,null,null,null,null,null,null,null,null,null,null,null,208,null,null,null,null,null,null,null,null,null,null,null,null,null,null,null,null,null,null,null,null,null,null,null,null,null,null,null,null,null,null,null,null,null,null,null,null,null,null,null,null,null,null,null,null,null,null,5]
[null,null,null,null,0,0,null,null,null,null,null,null,null,null,null,null,null,209,null,null,null,null,null,null,null,null,null,null,null,null,null,null,null,null,null,null,null,null,null,null,null,null,null,null,null,null,null,null,null,null,null,null,null,null,null,null,null,null,null,null,null,null,null,null,6]
[null,null,null,null,0,0,null,null,null,null,null,null,null,null,null,null,null,210,null,null,null,null,null,null,null,null,null,null,null,null,null,null,null,null,null,null,null,null,null,null,null,null,null,null,null,null,null,null,null,null,null,null,null,null,null,null,null,null,null,null,null,null,null,null,7]
[null,null,null,null,0,0,null,null,null,null,null,null,null,null,null,null,null,211,null,null,null,null,null,null,null,null,null,null,null,null,null,null,null,null,null,null,null,null,null,null,null,null,null,null,null,null,null,null,null,null,null,null,null,null,null,null,null,null,null,null,null,null,null,null,8]
[null,null,null,null,0,0,null,null,null,null,null,null,null,null,null,null,null,212,null,null,null,null,null,null,null,null,null,null,null,null,null,null,null,null,null,null,null,null,null,null,null,null,null,null,null,null,null,null,null,null,null,null,null,null,null,null,null,null,null,null,null,null,null,null,9]
[null,null,null,null,0,0,null,null,null,null,null,null,null,null,null,null,null,213,null,null,null,null,null,null,null,null,null,null,null,null,null,null,null,null,null,null,null,null,null,null,null,null,null,null,null,null,null,null,null,null,null,null,null,null,null,null,null,null,null,null,null,null,null,null,10]
[null,null,null,null,0,0,null,null,null,null,null,null,null,null,null,null,null,214,null,null,null,null,null,null,null,null,null,null,null,null,null,null,null,null,null,null,null,null,null,null,null,null,null,null,null,null,null,null,null,null,null,null,null,null,null,null,null,null,null,null,null,null,null,null,11]
[null,null,null,null,0,0,null,null,null,null,null,null,null,null,null,null,null,215,null,null,null,null,null,null,null,null,null,null,null,null,null,null,null,null,null,null,null,null,null,null,null,null,null,null,null,null,null,null,null,null,null,null,null,null,null,null,null,null,null,null,null,null,null,null,12]
[null,null,null,null,0,0,null,null,null,null,null,null,null,null,null,null,null,216,null,null,null,null,null,null,null,null,null,null,null,null,null,null,null,null,null,null,null,null,null,null,null,null,null,null,null,null,null,null,null,null,null,null,null,null,null,null,null,null,null,null,null,null,null,null,13]
[null,null,null,null,0,0,null,null,null,null,null,null,null,null,null,null,null,217,null,null,null,null,null,null,null,null,null,null,null,null,null,null,null,null,null,null,null,null,null,null,null,null,null,null,null,null,null,null,null,null,null,null,null,null,null,null,null,null,null,null,null,null,null,null,14]
[null,null,null,null,0,0,null,null,null,null,null,null,null,null,null,null,null,218,null,null,null,null,null,null,null,null,null,null,null,null,null,null,null,null,null,null,null,null,null,null,null,null,null,null,null,null,null,null,null,null,null,null,null,null,null,null,null,null,null,null,null,null,null,null,15]
[null,null,null,null,0,0,null,null,null,null,null,null,null,null,null,null,null,219,null,null,null,null,null,null,null,null,null,null,null,null,null,null,null,null,null,null,null,null,null,null,null,null,null,null,null,null,null,null,null,null,null,null,null,null,null,null,null,null,null,null,null,null,null,null,16]
[null,null,null,null,0,0,null,null,null,null,null,null,null,null,null,null,null,220,null,null,null,null,null,null,null,null,null,null,null,null,null,null,null,null,null,null,null,null,null,null,null,null,null,null,null,null,null,null,null,null,null,null,null,null,null,null,null,null,null,null,null,null,null,null,17]
[null,null,null,null,0,0,null,null,null,null,null,null,null,null,null,null,null,221,null,null,null,null,null,null,null,null,null,null,null,null,null,null,null,null,null,null,null,null,null,null,null,null,null,null,null,null,null,null,null,null,null,null,null,null,null,null,null,null,null,null,null,null,null,null,18]
[null,null,null,null,0,0,null,null,null,null,null,null,null,null,null,null,null,222,null,null,null,null,null,null,null,null,null,null,null,null,null,null,null,null,null,null,null,null,null,null,null,null,null,null,null,null,null,null,null,null,null,null,null,null,null,null,null,null,null,null,null,null,null,null,19]
[null,null,null,null,0,0,null,null,null,null,null,null,null,null,null,null,null,223,null,null,null,null,null,null,null,null,null,null,null,null,null,null,null,null,null,null,null,null,null,null,null,null,null,null,null,null,null,null,null,null,null,null,null,null,null,null,null,null,null,null,null,null,null,null,20]
[null,null,null,null,0,0,null,null,null,null,null,null,null,null,null,null,null,224,null,null,null,null,null,null,null,null,null,null,null,null,null,null,null,null,null,null,null,null,null,null,null,null,null,null,null,null,null,null,null,null,null,null,null,null,null,null,null,null,null,null,null,null,null,null,21]
[null,null,null,null,0,0,null,null,null,null,null,null,null,null,null,null,null,225,null,null,null,null,null,null,null,null,null,null,null,null,null,null,null,null,null,null,null,null,null,null,null,null,null,null,null,null,null,null,null,null,null,null,null,null,null,null,null,null,null,null,null,null,null,null,22]
[null,null,null,null,0,0,null,null,null,null,null,null,null,null,null,null,null,226,null,null,null,null,null,null,null,null,null,null,null,null,null,null,null,null,null,null,null,null,null,null,null,null,null,null,null,null,null,null,null,null,null,null,null,null,null,null,null,null,null,null,null,null,null,null,23]
[null,null,null,null,0,0,null,null,null,null,null,null,null,null,null,null,null,227,null,null,null,null,null,null,null,null,null,null,null,null,null,null,null,null,null,null,null,null,null,null,null,null,null,null,null,null,null,null,null,null,null,null,null,null,null,null,null,null,null,null,null,null,null,null,24]
[null,null,null,null,0,0,null,null,null,null,null,null,null,null,null,null,null,228,null,null,null,null,null,null,null,null,null,null,null,null,null,null,null,null,null,null,null,null,null,null,null,null,null,null,null,null,null,null,null,null,null,null,null,null,null,null,null,null,null,null,null,null,null,null,25]
[null,null,null,null,0,0,null,null,null,null,null,null,null,null,null,null,null,229,null,null,null,null,null,null,null,null,null,null,null,null,null,null,null,null,null,null,null,null,null,null,null,null,null,null,null,null,null,null,null,null,null,null,null,null,null,null,null,null,null,null,null,null,null,null,26]
[null,null,null,null,0,0,null,null,null,null,null,null,null,null,null,null,null,230,null,null,null,null,null,null,null,null,null,null,null,null,null,null,null,null,null,null,null,null,null,null,null,null,null,null,null,null,null,null,null,null,null,null,null,null,null,null,null,null,null,null,null,null,null,null,27]
[null,null,null,null,0,0,null,null,null,null,null,null,null,null,null,null,null,231,null,null,null,null,null,null,null,null,null,null,null,null,null,null,null,null,null,null,null,null,null,null,null,null,null,null,null,null,null,null,null,null,null,null,null,null,null,null,null,null,null,null,null,null,null,null,28]
[null,null,null,null,0,0,null,null,null,null,null,null,null,null,null,null,null,301,null,null,null,null,null,null,null,null,null,null,null,null,null,null,null,null,null,null,null,null,null,null,null,null,null,null,null,null,null,null,null,null,null,null,null,null,null,null,null,null,null,null,null,null,null,null,29]
[null,null,null,null,0,0,null,null,null,null,null,null,null,null,null,null,null,302,null,null,null,null,null,null,null,null,null,null,null,null,null,null,null,null,null,null,null,null,null,null,null,null,null,null,null,null,null,null,null,null,null,null,null,null,null,null,null,null,null,null,null,null,null,null,30]
[null,null,null,null,0,0,null,null,null,null,null,null,null,null,null,null,null,303,null,null,null,null,null,null,null,null,null,null,null,null,null,null,null,null,null,null,null,null,null,null,null,null,null,null,null,null,null,null,null,null,null,null,null,null,null,null,null,null,null,null,null,null,null,null,31]
[null,null,null,null,0,0,null,null,null,null,null,null,null,null,null,null,null,304,null,null,null,null,null,null,null,null,null,null,null,null,null,null,null,null,null,null,null,null,null,null,null,null,null,null,null,null,null,null,null,null,null,null,null,null,null,null,null,null,null,null,null,null,null,null,32]
[null,null,null,null,{"$f":"BN77","v":0},{"$f":"BP77","v":0},null,null,null,null,null,null,null,null,null,null,null,305,null,null,null,null,null,null,null,null,null,null,null,null,null,null,null,null,null,null,null,null,null,null,null,null,null,null,null,null,null,null,null,null,null,null,null,null,null,null,null,null,null,null,null,null,null,null,33]
[null,null,null,null,0,0,null,null,null,null,null,null,null,null,null,null,null,306,null,null,null,null,null,null,null,null,null,null,null,null,null,null,null,null,null,null,null,null,null,null,null,null,null,null,null,null,null,null,null,null,null,null,null,null,null,null,null,null,null,null,null,null,null,null,34]
[null,null,null,null,0,0,null,null,null,null,null,null,null,null,null,null,null,307,null,null,null,null,null,null,null,null,null,null,null,null,null,null,null,null,null,null,null,null,null,null,null,null,null,null,null,null,null,null,null,null,null,null,null,null,null,null,null,null,null,null,null,null,null,null,35]
[null,null,null,null,0,0,null,null,null,null,null,null,null,null,null,null,null,308,null,null,null,null,null,null,null,null,null,null,null,null,null,null,null,null,null,null,null,null,null,null,null,null,null,null,null,null,null,null,null,null,null,null,null,null,null,null,null,null,null,null,null,null,null,null,36]
[null,null,null,null,0,0,null,null,null,null,null,null,null,null,null,null,null,309,null,null,null,null,null,null,null,null,null,null,null,null,null,null,null,null,null,null,null,null,null,null,null,null,null,null,null,null,null,null,null,null,null,null,null,null,null,null,null,null,null,null,null,null,null,null,37]
[null,null,null,null,0,0,null,null,null,null,null,null,null,null,null,null,null,310,null,null,null,null,null,null,null,null,null,null,null,null,null,null,null,null,null,null,null,null,null,null,null,null,null,null,null,null,null,null,null,null,null,null,null,null,null,null,null,null,null,null,null,null,null,null,38]
[null,null,null,null,0,0,null,null,null,null,null,null,null,null,null,null,null,311,null,null,null,null,null,null,null,null,null,null,null,null,null,null,null,null,null,null,null,null,null,null,null,null,null,null,null,null,null,null,null,null,null,null,null,null,null,null,null,null,null,null,null,null,null,null,39]
[null,null,null,null,0,0,null,null,null,null,null,null,null,null,null,null,null,312,null,null,null,null,null,null,null,null,null,null,null,null,null,null,null,null,null,null,null,null,null,null,null,null,null,null,null,null,null,null,null,null,null,null,null,null,null,null,null,null,null,null,null,null,null,null,40]
[null,null,null,null,0,0,null,null,null,null,null,null,null,null,null,null,null,313,null,null,null,null,null,null,null,null,null,null,null,null,null,null,null,null,null,null,null,null,null,null,null,null,null,null,null,null,null,null,null,null,null,null,null,null,null,null,null,null,null,null,null,null,null,null,41]
[null,null,null,null,0,0,null,null,null,null,null,null,null,null,null,null,null,314,null,null,null,null,null,null,null,null,null,null,null,null,null,null,null,null,null,null,null,null,null,null,null,null,null,null,null,null,null,null,null,null,null,null,null,null,null,null,null,null,null,null,null,null,null,null,42]
[null,null,null,null,0,0,null,null,null,null,null,null,null,null,null,null,null,315,null,null,null,null,null,null,null,null,null,null,null,null,null,null,null,null,null,null,null,null,null,null,null,null,null,null,null,null,null,null,null,null,null,null,null,null,null,null,null,null,null,null,null,null,null,null,43]
[null,null,null,null,0,0,null,null,null,null,null,null,null,null,null,null,null,316,null,null,null,null,null,null,null,null,null,null,null,null,null,null,null,null,null,null,null,null,null,null,null,null,null,null,null,null,null,null,null,null,null,null,null,null,null,null,null,null,null,null,null,null,null,null,44]
[null,null,null,null,0,0,null,null,null,null,null,null,null,null,null,null,null,317,null,null,null,null,null,null,null,null,null,null,null,null,null,null,null,null,null,null,null,null,null,null,null,null,null,null,null,null,null,null,null,null,null,null,null,null,null,null,null,null,null,null,null,null,null,null,45]
[null,null,null,null,0,0,null,null,null,null,null,null,null,null,null,null,null,318,null,null,null,null,null,null,null,null,null,null,null,null,null,null,null,null,null,null,null,null,null,null,null,null,null,null,null,null,null,null,null,null,null,null,null,null,null,null,null,null,null,null,null,null,null,null,46]
[null,null,null,null,0,0,null,null,null,null,null,null,null,null,null,null,null,319,null,null,null,null,null,null,null,null,null,null,null,null,null,null,null,null,null,null,null,null,null,null,null,null,null,null,null,null,null,null,null,null,null,null,null,null,null,null,null,null,null,null,null,null,null,null,47]
[null,null,null,null,0,0,null,null,null,null,null,null,null,null,null,null,null,320,null,null,null,null,null,null,null,null,null,null,null,null,null,null,null,null,null,null,null,null,null,null,null,null,null,null,null,null,null,null,null,null,null,null,null,null,null,null,null,null,null,null,null,null,null,null,48]
[null,null,null,null,0,0,null,null,null,null,null,null,null,null,null,null,null,321,null,null,null,null,null,null,null,null,null,null,null,null,null,null,null,null,null,null,null,null,null,null,null,null,null,null,null,null,null,null,null,null,null,null,null,null,null,null,null,null,null,null,null,null,null,null,49]
[null,null,null,null,0,0,null,null,null,null,null,null,null,null,null,null,null,322,null,null,null,null,null,null,null,null,null,null,null,null,null,null,null,null,null,null,null,null,null,null,null,null,null,null,null,null,null,null,null,null,null,null,null,null,null,null,null,null,null,null,null,null,null,null,50]
[null,null,null,null,null,null,null,null,null,null,null,null,null,null,null,null,null,323]
[null,null,null,null,null,null,null,null,null,null,null,null,null,null,null,null,null,324]
[null,null,null,null,null,null,null,null,null,null,null,null,null,null,null,null,null,325]
[null,null,null,null,null,null,null,null,null,null,null,null,null,null,null,null,null,326]
[null,null,null,null,null,null,null,"月","日",null,null,null,null,null,null,null,null,327]
[null,null,null,null,null,null,null,6,5,null,null,null,null,null,null,null,null,328]
[null,null,null,null,null,null,null,null,null,null,null,null,null,null,null,null,null,329]
[null,null,null,null,"基本情報（保存記録）",null,null,null,null,"記入者","施設長","医師",null,null,null,null,null,330]
[null,null,null,null,null,null,null,null,null,{"$f":"IF(I104=0,\"\",VLOOKUP(I104,R10:BL382,26))","v":0},null,null,null,null,null,null,null,331]
[null,null,null,null,{"$f":"IF(I104=0,\"\",VLOOKUP(I104,R10:BL382,2))","v":0},{"$f":"IF(I104=0,\"\",VLOOKUP(I104,R10:BL382,3))","v":0},{"$f":"IF(I104=0,\"\",VLOOKUP(I104,R10:BL382,4))","v":0},{"$f":"IF(ISERROR(DATE(E104,F104,G104)),0,DATE(E104,F104,G104))","v":0},{"$f":"H100*100+I100","v":605},null,null,null,null,null,null,null,null,401]
[null,null,null,null,"在籍入居者数",null,{"$f":"IF(I104=0,\"\",VLOOKUP(I104,R10:BL382,5))","v":0},{"$f":"H30","v":0},"勤務者",{"$f":"IF(I104=0,\"\",VLOOKUP(I104,R10:BL382,27))","v":0},{"$f":"IF(I104=0,\"\",VLOOKUP(I104,R10:BL382,28))","v":0},{"$f":"IF(I104=0,\"\",VLOOKUP(I104,R10:BL382,29))","v":0},null,null,null,null,null,402]
[null,null,null,null,"入院",{"$f":"IF(I104=0,\"\",VLOOKUP(I104,R10:BL382,6))","v":0},{"$f":"G31","v":0},0,null,{"$f":"IF(I104=0,\"\",VLOOKUP(I104,R10:BL382,30))","v":0},{"$f":"IF(I104=0,\"\",VLOOKUP(I104,R10:BL382,31))","v":0},{"$f":"IF(I104=0,\"\",VLOOKUP(I104,R10:BL382,32))","v":0},null,null,null,null,null,403]
[null,null,null,null,null,{"$f":"F32","v":"小計"},{"$f":"G32","v":0},0,null,{"$f":"IF(I104=0,\"\",VLOOKUP(I104,R10:BL382,33))","v":0},{"$f":"IF(I104=0,\"\",VLOOKUP(I104,R10:BL382,34))","v":0},{"$f":"IF(I104=0,\"\",VLOOKUP(I104,R10:BL382,35))","v":0},null,null,null,null,null,404]
[null,null,null,null,null,"小計",{"$f":"IF(I104=0,\"\",VLOOKUP(I104,R10:BL382,7))","v":0},0,"施設内治療（人数記入）",null,null,null,null,null,null,null,null,405]
[null,null,null,null,"帰宅（外泊）",null,{"$f":"IF(I104=0,\"\",VLOOKUP(I104,R10:BL382,8))","v":0},0,"点眼",{"$f":"IF(I104=0,\"\",VLOOKUP(I104,R10:BL382,36))","v":0},"創処置",{"$f":"IF(I104=0,\"\",VLOOKUP(I104,R10:BL382,39))","v":0},null,null,null,null,null,406]
[null,null,null,null,"ショートステイ",null,{"$f":"IF(I104=0,\"\",VLOOKUP(I104,R10:BL382,9))","v":0},0,"褥瘡処置",{"$f":"IF(I104=0,\"\",VLOOKUP(I104,R10:BL382,37))","v":0},"軟膏",{"$f":"IF(I104=0,\"\",VLOOKUP(I104,R10:BL382,40))","v":0},null,null,null,null,null,407]
[null,null,null,null,"現在人数",null,{"$f":"IF(I104=0,\"\",VLOOKUP(I104,R10:BL382,10))","v":0},"入所　0","ｲﾝｼｭﾘﾝ\n注射",{"$f":"IF(I104=0,\"\",VLOOKUP(I104,R10:BL382,38))","v":0},"ｴﾙｼﾄﾆﾝ\n筋注",{"$f":"IF(I104=0,\"\",VLOOKUP(I104,R10:BL382,41))","v":0},null,null,null,null,null,408]
[null,null,null,null,"移動状況",null,{"$f":"IF(I104=0,\"\",VLOOKUP(I104,R10:BL382,11))","v":0},{"$f":"IF(I104=0,\"\",VLOOKUP(I104,R10:BL382,18))","v":0},"点滴",{"$f":"IF(I104=0,\"\",VLOOKUP(I104,R10:BL382,42))","v":0},{"$f":"K37","v":0},0,null,null,null,null,null,409]
[null,null,null,null,"担送",null,{"$f":"IF(I104=0,\"\",VLOOKUP(I104,R10:BL382,12))","v":0},{"$f":"IF(I104=0,\"\",VLOOKUP(I104,R10:BL382,19))","v":0},"IVH",{"$f":"IF(I104=0,\"\",VLOOKUP(I104,R10:BL382,43))","v":0},0,0,null,null,null,null,null,410]
[null,null,null,null,"護送","車椅子",{"$f":"IF(I104=0,\"\",VLOOKUP(I104,R10:BL382,13))","v":0},{"$f":"IF(I104=0,\"\",VLOOKUP(I104,R10:BL382,20))","v":0},"発熱者\n",{"$f":"IF(I104=0,\"\",VLOOKUP(I104,R10:BL382,45))","v":0},0,0,null,null,null,null,null,411]
[null,null,null,null,null,"歩行介助",{"$f":"IF(I104=0,\"\",VLOOKUP(I104,R10:BL382,14))","v":0},{"$f":"IF(I104=0,\"\",VLOOKUP(I104,R10:BL382,21))","v":0},null,{"$f":"J40","v":0},0,0,null,null,null,null,null,412]
[null,null,null,null,"独歩",null,{"$f":"IF(I104=0,\"\",VLOOKUP(I104,R10:BL382,15))","v":0},{"$f":"IF(I104=0,\"\",VLOOKUP(I104,R10:BL382,22))","v":0},{"$f":"IF(I104=0,\"\",VLOOKUP(I104,R10:BL382,44))","v":0},{"$f":"J41","v":""},0,0,null,null,null,null,null,413]
[null,null,null,null,"経管栄養","経鼻",{"$f":"IF(I104=0,\"\",VLOOKUP(I104,R10:BL382,16))","v":0},{"$f":"IF(I104=0,\"\",VLOOKUP(I104,R10:BL382,23))","v":0},"就寝前薬",{"$f":"IF(I104=0,\"\",VLOOKUP(I104,R10:BL382,47))","v":0},0,0,null,null,null,null,null,414]
[null,null,null,null,null,"胃瘻",{"$f":"IF(I104=0,\"\",VLOOKUP(I104,R10:BL382,17))","v":0},{"$f":"IF(I104=0,\"\",VLOOKUP(I104,R10:BL382,24))","v":0},null,{"$f":"J43","v":0},0,0,null,null,null,null,null,415]
[null,null,null,null,"緩下剤",{"$f":"IF(I104=0,\"\",VLOOKUP(I104,R10:BL382,25))","v":0},{"$f":"G44","v":0},{"$f":"H44","v":0},null,{"$f":"J44","v":0},0,0,null,null,null,null,null,416]
[null,null,null,null,null,{"$f":"F45","v":0},{"$f":"G45","v":0},{"$f":"H45","v":0},{"$f":"IF(I104=0,\"\",VLOOKUP(I104,R10:BL382,46))","v":0},{"$f":"J45","v":0},0,0,null,null,null,null,null,417]
[null,null,null,null,null,null,null,null,null,null,null,null,null,null,null,null,null,418]
[null,null,null,null,null,null,null,null,null,null,null,null,null,null,null,null,null,419]
[null,null,null,null,null,null,null,null,null,null,null,null,null,null,null,null,null,420]
[null,null,null,null,null,null,null,null,null,null,null,null,null,null,null,null,null,421]
[null,null,null,null,null,null,null,null,null,null,null,null,null,null,null,null,null,422]
[null,null,null,null,null,null,null,null,null,null,null,null,null,null,null,null,null,423]
[null,null,null,null,null,null,null,null,null,null,null,null,null,null,null,null,null,424]
[null,null,null,null,null,null,null,null,null,null,null,null,null,null,null,null,null,425]
[null,null,null,null,null,null,null,null,null,null,null,null,null,null,null,null,null,426]
[null,null,null,null,null,null,null,null,null,null,null,null,null,null,null,null,null,427]
[null,null,null,null,null,null,null,null,null,null,null,null,null,null,null,null,null,428]
[null,null,null,null,null,null,null,null,null,null,null,null,null,null,null,null,null,429]
[null,null,null,null,null,null,null,null,null,null,null,null,null,null,null,null,null,430]
[null,null,null,null,null,null,null,null,null,null,null,null,null,null,null,null,null,431]
[null,null,null,null,null,null,null,null,null,null,null,null,null,null,null,null,null,501]
[null,null,null,null,null,null,null,null,null,null,null,null,null,null,null,null,null,502]
[null,null,null,null,null,null,null,null,null,null,null,null,null,null,null,null,null,503]
[null,null,null,null,null,null,null,null,null,null,null,null,null,null,null,null,null,504]
[null,null,null,null,null,null,null,null,null,null,null,null,null,null,null,null,null,505]
[null,null,null,null,null,null,null,null,null,null,null,null,null,null,null,null,null,506]
[null,null,null,null,null,null,null,null,null,null,null,null,null,null,null,null,null,507]
[null,null,null,null,null,null,null,null,null,null,null,null,null,null,null,null,null,508]
[null,null,null,null,null,null,null,null,null,null,null,null,null,null,null,null,null,509]
[null,null,null,null,null,null,null,null,null,null,null,null,null,null,null,null,null,510]
[null,null,null,null,null,null,null,null,null,null,null,null,null,null,null,null,null,511]
[null,null,null,null,null,null,null,null,null,null,null,null,null,null,null,null,null,512]
[null,null,null,null,null,null,null,null,null,null,null,null,null,null,null,null,null,513]
[null,null,null,null,null,null,null,null,null,null,null,null,null,null,null,null,null,514]
[null,null,null,null,null,null,null,null,null,null,null,null,null,null,null,null,null,515]
[null,null,null,null,null,null,null,null,null,null,null,null,null,null,null,null,null,516]
[null,null,null,null,null,null,null,null,null,null,null,null,null,null,null,null,null,517]
[null,null,null,null,null,null,null,null,null,null,null,null,null,null,null,null,null,518]
[null,null,null,null,null,null,null,null,null,null,null,null,null,null,null,null,null,519]
[null,null,null,null,null,null,null,null,null,null,null,null,null,null,null,null,null,520]
[null,null,null,null,null,null,null,null,null,null,null,null,null,null,null,null,null,521]
[null,null,null,null,null,null,null,null,null,null,null,null,null,null,null,null,null,522]
[null,null,null,null,null,null,null,null,null,null,null,null,null,null,null,null,null,523]
[null,null,null,null,null,null,null,null,null,null,null,null,null,null,null,null,null,524]
[null,null,null,null,null,null,null,null,null,null,null,null,null,null,null,null,null,525]
[null,null,null,null,null,null,null,null,null,null,null,null,null,null,null,null,null,526]
[null,null,null,null,null,null,null,null,null,null,null,null,null,null,null,null,null,527]
[null,null,null,null,null,null,null,null,null,null,null,null,null,null,null,null,null,528]
[null,null,null,null,null,null,null,null,null,null,null,null,null,null,null,null,null,529]
[null,null,null,null,null,null,null,null,null,null,null,null,null,null,null,null,null,530]
[null,null,null,null,null,null,null,null,null,null,null,null,null,null,null,null,null,531]
[null,null,null,null,null,null,null,null,null,null,null,null,null,null,null,null,null,601]
[null,null,null,null,null,null,null,null,null,null,null,null,null,null,null,null,null,602]
[null,null,null,null,null,null,null,null,null,null,null,null,null,null,null,null,null,603]
[null,null,null,null,null,null,null,null,null,null,null,null,null,null,null,null,null,604]
[null,null,null,null,null,null,null,null,null,null,null,null,null,null,null,null,null,605]
[null,null,null,null,null,null,null,null,null,null,null,null,null,null,null,null,null,606]
[null,null,null,null,null,null,null,null,null,null,null,null,null,null,null,null,null,607]
[null,null,null,null,null,null,null,null,null,null,null,null,null,null,null,null,null,608]
[null,null,null,null,null,null,null,null,null,null,null,null,null,null,null,null,null,609]
[null,null,null,null,null,null,null,null,null,null,null,null,null,null,null,null,null,610]
[null,null,null,null,null,null,null,null,null,null,null,null,null,null,null,null,null,611]
[null,null,null,null,null,null,null,null,null,null,null,null,null,null,null,null,null,612]
[null,null,null,null,null,null,null,null,null,null,null,null,null,null,null,null,null,613]
[null,null,null,null,null,null,null,null,null,null,null,null,null,null,null,null,null,614]
[null,null,null,null,null,null,null,null,null,null,null,null,null,null,null,null,null,615]
[null,null,null,null,null,null,null,null,null,null,null,null,null,null,null,null,null,616]
[null,null,null,null,null,null,null,null,null,null,null,null,null,null,null,null,null,617]
[null,null,null,null,null,null,null,null,null,null,null,null,null,null,null,null,null,618]
[null,null,null,null,null,null,null,null,null,null,null,null,null,null,null,null,null,619]
[null,null,null,null,null,null,null,null,null,null,null,null,null,null,null,null,null,620]
[null,null,null,null,null,null,null,null,null,null,null,null,null,null,null,null,null,621]
[null,null,null,null,null,null,null,null,null,null,null,null,null,null,null,null,null,622]
[null,null,null,null,null,null,null,null,null,null,null,null,null,null,null,null,null,623]
[null,null,null,null,null,null,null,null,null,null,null,null,null,null,null,null,null,624]
[null,null,null,null,null,null,null,null,null,null,null,null,null,null,null,null,null,625]
[null,null,null,null,null,null,null,null,null,null,null,null,null,null,null,null,null,626]
[null,null,null,null,null,null,null,null,null,null,null,null,null,null,null,null,null,627]
[null,null,null,null,null,null,null,null,null,null,null,null,null,null,null,null,null,628]
[null,null,null,null,null,null,null,null,null,null,null,null,null,null,null,null,null,629]
[null,null,null,null,null,null,null,null,null,null,null,null,null,null,null,null,null,630]
[null,null,null,null,null,null,null,null,null,null,null,null,null,null,null,null,null,631]
[null,null,null,null,null,null,null,null,null,null,null,null,null,null,null,null,null,701]
[null,null,null,null,null,null,null,null,null,null,null,null,null,null,null,null,null,702]
[null,null,null,null,null,null,null,null,null,null,null,null,null,null,null,null,null,703]
[null,null,null,null,null,null,null,null,null,null,null,null,null,null,null,null,null,704]
[null,null,null,null,null,null,null,null,null,null,null,null,null,null,null,null,null,705]
[null,null,null,null,null,null,null,null,null,null,null,null,null,null,null,null,null,706]
[null,null,null,null,null,null,null,null,null,null,null,null,null,null,null,null,null,707]
[null,null,null,null,null,null,null,null,null,null,null,null,null,null,null,null,null,708]
[null,null,null,null,null,null,null,null,null,null,null,null,null,null,null,null,null,709]
[null,null,null,null,null,null,null,null,null,null,null,null,null,null,null,null,null,710]
[null,null,null,null,null,null,null,null,null,null,null,null,null,null,null,null,null,711]
[null,null,null,null,null,null,null,null,null,null,null,null,null,null,null,null,null,712]
[null,null,null,null,null,null,null,null,null,null,null,null,null,null,null,null,null,713]
[null,null,null,null,null,null,null,null,null,null,null,null,null,null,null,null,null,714]
[null,null,null,null,null,null,null,null,null,null,null,null,null,null,null,null,null,715]
[null,null,null,null,null,null,null,null,null,null,null,null,null,null,null,null,null,716]
[null,null,null,null,null,null,null,null,null,null,null,null,null,null,null,null,null,717]
[null,null,null,null,null,null,null,null,null,null,null,null,null,null,null,null,null,718]
[null,null,null,null,null,null,null,null,null,null,null,null,null,null,null,null,null,719]
[null,null,null,null,null,null,null,null,null,null,null,null,null,null,null,null,null,720]
[null,null,null,null,null,null,null,null,null,null,null,null,null,null,null,null,null,721]
[null,null,null,null,null,null,null,null,null,null,null,null,null,null,null,null,null,722]
[null,null,null,null,null,null,null,null,null,null,null,null,null,null,null,null,null,723]
[null,null,null,null,null,null,null,null,null,null,null,null,null,null,null,null,null,724]
[null,null,null,null,null,null,null,null,null,null,null,null,null,null,null,null,null,725]
[null,null,null,null,null,null,null,null,null,null,null,null,null,null,null,null,null,726]
[null,null,null,null,null,null,null,null,null,null,null,null,null,null,null,null,null,727]
[null,null,null,null,null,null,null,null,null,null,null,null,null,null,null,null,null,728]
[null,null,null,null,null,null,null,null,null,null,null,null,null,null,null,null,null,729]
[null,null,null,null,null,null,null,null,null,null,null,null,null,null,null,null,null,730]
[null,null,null,null,null,null,null,null,null,null,null,null,null,null,null,null,null,731]
[null,null,null,null,null,null,null,null,null,null,null,null,null,null,null,null,null,801]
[null,null,null,null,null,null,null,null,null,null,null,null,null,null,null,null,null,802]
[null,null,null,null,null,null,null,null,null,null,null,null,null,null,null,null,null,803]
[null,null,null,null,null,null,null,null,null,null,null,null,null,null,null,null,null,804]
[null,null,null,null,null,null,null,null,null,null,null,null,null,null,null,null,null,805]
[null,null,null,null,null,null,null,null,null,null,null,null,null,null,null,null,null,806]
[null,null,null,null,null,null,null,null,null,null,null,null,null,null,null,null,null,807]
[null,null,null,null,null,null,null,null,null,null,null,null,null,null,null,null,null,808]
[null,null,null,null,null,null,null,null,null,null,null,null,null,null,null,null,null,809]
[null,null,null,null,null,null,null,null,null,null,null,null,null,null,null,null,null,810]
[null,null,null,null,null,null,null,null,null,null,null,null,null,null,null,null,null,811]
[null,null,null,null,null,null,null,null,null,null,null,null,null,null,null,null,null,812]
[null,null,null,null,null,null,null,null,null,null,null,null,null,null,null,null,null,813]
[null,null,null,null,null,null,null,null,null,null,null,null,null,null,null,null,null,814]
[null,null,null,null,null,null,null,null,null,null,null,null,null,null,null,null,null,815]
[null,null,null,null,null,null,null,null,null,null,null,null,null,null,null,null,null,816]
[null,null,null,null,null,null,null,null,null,null,null,null,null,null,null,null,null,817]
[null,null,null,null,null,null,null,null,null,null,null,null,null,null,null,null,null,818]
[null,null,null,null,null,null,null,null,null,null,null,null,null,null,null,null,null,819]
[null,null,null,null,null,null,null,null,null,null,null,null,null,null,null,null,null,820]
[null,null,null,null,null,null,null,null,null,null,null,null,null,null,null,null,null,821]
[null,null,null,null,null,null,null,null,null,null,null,null,null,null,null,null,null,822]
[null,null,null,null,null,null,null,null,null,null,null,null,null,null,null,null,null,823]
[null,null,null,null,null,null,null,null,null,null,null,null,null,null,null,null,null,824]
[null,null,null,null,null,null,null,null,null,null,null,null,null,null,null,null,null,825]
[null,null,null,null,null,null,null,null,null,null,null,null,null,null,null,null,null,826]
[null,null,null,null,null,null,null,null,null,null,null,null,null,null,null,null,null,827]
[null,null,null,null,null,null,null,null,null,null,null,null,null,null,null,null,null,828]
[null,null,null,null,null,null,null,null,null,null,null,null,null,null,null,null,null,829]
[null,null,null,null,null,null,null,null,null,null,null,null,null,null,null,null,null,830]
[null,null,null,null,null,null,null,null,null,null,null,null,null,null,null,null,null,831]
[null,null,null,null,null,null,null,null,null,null,null,null,null,null,null,null,null,901]
[null,null,null,null,null,null,null,null,null,null,null,null,null,null,null,null,null,902]
[null,null,null,null,null,null,null,null,null,null,null,null,null,null,null,null,null,903]
[null,null,null,null,null,null,null,null,null,null,null,null,null,null,null,null,null,904]
[null,null,null,null,null,null,null,null,null,null,null,null,null,null,null,null,null,905]
[null,null,null,null,null,null,null,null,null,null,null,null,null,null,null,null,null,906]
[null,null,null,null,null,null,null,null,null,null,null,null,null,null,null,null,null,907]
[null,null,null,null,null,null,null,null,null,null,null,null,null,null,null,null,null,908]
[null,null,null,null,null,null,null,null,null,null,null,null,null,null,null,null,null,909]
[null,null,null,null,null,null,null,null,null,null,null,null,null,null,null,null,null,910]
[null,null,null,null,null,null,null,null,null,null,null,null,null,null,null,null,null,911]
[null,null,null,null,null,null,null,null,null,null,null,null,null,null,null,null,null,912]
[null,null,null,null,null,null,null,null,null,null,null,null,null,null,null,null,null,913]
[null,null,null,null,null,null,null,null,null,null,null,null,null,null,null,null,null,914]
[null,null,null,null,null,null,null,null,null,null,null,null,null,null,null,null,null,915]
[null,null,null,null,null,null,null,null,null,null,null,null,null,null,null,null,null,916]
[null,null,null,null,null,null,null,null,null,null,null,null,null,null,null,null,null,917]
[null,null,null,null,null,null,null,null,null,null,null,null,null,null,null,null,null,918]
[null,null,null,null,null,null,null,null,null,null,null,null,null,null,null,null,null,919]
[null,null,null,null,null,null,null,null,null,null,null,null,null,null,null,null,null,920]
[null,null,null,null,null,null,null,null,null,null,null,null,null,null,null,null,null,921]
[null,null,null,null,null,null,null,null,null,null,null,null,null,null,null,null,null,922]
[null,null,null,null,null,null,null,null,null,null,null,null,null,null,null,null,null,923]
[null,null,null,null,null,null,null,null,null,null,null,null,null,null,null,null,null,924]
[null,null,null,null,null,null,null,null,null,null,null,null,null,null,null,null,null,925]
[null,null,null,null,null,null,null,null,null,null,null,null,null,null,null,null,null,926]
[null,null,null,null,null,null,null,null,null,null,null,null,null,null,null,null,null,927]
[null,null,null,null,null,null,null,null,null,null,null,null,null,null,null,null,null,928]
[null,null,null,null,null,null,null,null,null,null,null,null,null,null,null,null,null,929]
[null,null,null,null,null,null,null,null,null,null,null,null,null,null,null,null,null,930]
[null,null,null,null,null,null,null,null,null,null,null,null,null,null,null,null,null,931]
[null,null,null,null,null,null,null,null,null,null,null,null,null,null,null,null,null,1001]
[null,null,null,null,null,null,null,null,null,null,null,null,null,null,null,null,null,1002]
[null,null,null,null,null,null,null,null,null,null,null,null,null,null,null,null,null,1003]
[null,null,null,null,null,null,null,null,null,null,null,null,null,null,null,null,null,1004]
[null,null,null,null,null,null,null,null,null,null,null,null,null,null,null,null,null,1005]
[null,null,null,null,null,null,null,null,null,null,null,null,null,null,null,null,null,1006]
[null,null,null,null,null,null,null,null,null,null,null,null,null,null,null,null,null,1007]
[null,null,null,null,null,null,null,null,null,null,null,null,null,null,null,null,null,1008]
[null,null,null,null,null,null,null,null,null,null,null,null,null,null,null,null,null,1009]
[null,null,null,null,null,null,null,null,null,null,null,null,null,null,null,null,null,1010]
[null,null,null,null,null,null,null,null,null,null,null,null,null,null,null,null,null,1011]
[null,null,null,null,null,null,null,null,null,null,null,null,null,null,null,null,null,1012]
[null,null,null,null,null,null,null,null,null,null,null,null,null,null,null,null,null,1013]
[null,null,null,null,null,null,null,null,null,null,null,null,null,null,null,null,null,1014]
[null,null,null,null,null,null,null,null,null,null,null,null,null,null,null,null,null,1015]
[null,null,null,null,null,null,null,null,null,null,null,null,null,null,null,null,null,1016]
[null,null,null,null,null,null,null,null,null,null,null,null,null,null,null,null,null,1017]
[null,null,null,null,null,null,null,null,null,null,null,null,null,null,null,null,null,1018]
[null,null,null,null,null,null,null,null,null,null,null,null,null,null,null,null,null,1019]
[null,null,null,null,null,null,null,null,null,null,null,null,null,null,null,null,null,1020]
[null,null,null,null,null,null,null,null,null,null,null,null,null,null,null,null,null,1021]
[null,null,null,null,null,null,null,null,null,null,null,null,null,null,null,null,null,1022]
[null,null,null,null,null,null,null,null,null,null,null,null,null,null,null,null,null,1023]
[null,null,null,null,null,null,null,null,null,null,null,null,null,null,null,null,null,1024]
[null,null,null,null,null,null,null,null,null,null,null,null,null,null,null,null,null,1025]
[null,null,null,null,null,null,null,null,null,null,null,null,null,null,null,null,null,1026]
[null,null,null,null,null,null,null,null,null,null,null,null,null,null,null,null,null,1027]
[null,null,null,null,null,null,null,null,null,null,null,null,null,null,null,null,null,1028]
[null,null,null,null,null,null,null,null,null,null,null,null,null,null,null,null,null,1029]
[null,null,null,null,null,null,null,null,null,null,null,null,null,null,null,null,null,1030]
[null,null,null,null,null,null,null,null,null,null,null,null,null,null,null,null,null,1031]
[null,null,null,null,null,null,null,null,null,null,null,null,null,null,null,null,null,1101]
[null,null,null,null,null,null,null,null,null,null,null,null,null,null,null,null,null,1102]
[null,null,null,null,null,null,null,null,null,null,null,null,null,null,null,null,null,1103]
[null,null,null,null,null,null,null,null,null,null,null,null,null,null,null,null,null,1104]
[null,null,null,null,null,null,null,null,null,null,null,null,null,null,null,null,null,1105]
[null,null,null,null,null,null,null,null,null,null,null,null,null,null,null,null,null,1106]
[null,null,null,null,null,null,null,null,null,null,null,null,null,null,null,null,null,1107]
[null,null,null,null,null,null,null,null,null,null,null,null,null,null,null,null,null,1108]
[null,null,null,null,null,null,null,null,null,null,null,null,null,null,null,null,null,1109]
[null,null,null,null,null,null,null,null,null,null,null,null,null,null,null,null,null,1110]
[null,null,null,null,null,null,null,null,null,null,null,null,null,null,null,null,null,1111]
[null,null,null,null,null,null,null,null,null,null,null,null,null,null,null,null,null,1112]
[null,null,null,null,null,null,null,null,null,null,null,null,null,null,null,null,null,1113]
[null,null,null,null,null,null,null,null,null,null,null,null,null,null,null,null,null,1114]
[null,null,null,null,null,null,null,null,null,null,null,null,null,null,null,null,null,1115]
[null,null,null,null,null,null,null,null,null,null,null,null,null,null,null,null,null,1116]
[null,null,null,null,null,null,null,null,null,null,null,null,null,null,null,null,null,1117]
[null,null,null,null,null,null,null,null,null,null,null,null,null,null,null,null,null,1118]
[null,null,null,null,null,null,null,null,null,null,null,null,null,null,null,null,null,1119]
[null,null,null,null,null,null,null,null,null,null,null,null,null,null,null,null,null,1120]
[null,null,null,null,null,null,null,null,null,null,null,null,null,null,null,null,null,1121]
[null,null,null,null,null,null,null,null,null,null,null,null,null,null,null,null,null,1122]
[null,null,null,null,null,null,null,null,null,null,null,null,null,null,null,null,null,1123]
[null,null,null,null,null,null,null,null,null,null,null,null,null,null,null,null,null,1124]
[null,null,null,null,null,null,null,null,null,null,null,null,null,null,null,null,null,1125]
[null,null,null,null,null,null,null,null,null,null,null,null,null,null,null,null,null,1126]
[null,null,null,null,null,null,null,null,null,null,null,null,null,null,null,null,null,1127]
[null,null,null,null,null,null,null,null,null,null,null,null,null,null,null,null,null,1128]
[null,null,null,null,null,null,null,null,null,null,null,null,null,null,null,null,null,1129]
[null,null,null,null,null,null,null,null,null,null,null,null,null,null,null,null,null,1130]
[null,null,null,null,null,null,null,null,null,null,null,null,null,null,null,null,null,1131]
[null,null,null,null,null,null,null,null,null,null,null,null,null,null,null,null,null,1201]
[null,null,null,null,null,null,null,null,null,null,null,null,null,null,null,null,null,1202]
[null,null,null,null,null,null,null,null,null,null,null,null,null,null,null,null,null,1203]
[null,null,null,null,null,null,null,null,null,null,null,null,null,null,null,null,null,1204]
[null,null,null,null,null,null,null,null,null,null,null,null,null,null,null,null,null,1205]
[null,null,null,null,null,null,null,null,null,null,null,null,null,null,null,null,null,1206]
[null,null,null,null,null,null,null,null,null,null,null,null,null,null,null,null,null,1207]
[null,null,null,null,null,null,null,null,null,null,null,null,null,null,null,null,null,1208]
[null,null,null,null,null,null,null,null,null,null,null,null,null,null,null,null,null,1209]
[null,null,null,null,null,null,null,null,null,null,null,null,null,null,null,null,null,1210]
[null,null,null,null,null,null,null,null,null,null,null,null,null,null,null,null,null,1211]
[null,null,null,null,null,null,null,null,null,null,null,null,null,null,null,null,null,1212]
[null,null,null,null,null,null,null,null,null,null,null,null,null,null,null,null,null,1213]
[null,null,null,null,null,null,null,null,null,null,null,null,null,null,null,null,null,1214]
[null,null,null,null,null,null,null,null,null,null,null,null,null,null,null,null,null,1215]
[null,null,null,null,null,null,null,null,null,null,null,null,null,null,null,null,null,1216]
[null,null,null,null,null,null,null,null,null,null,null,null,null,null,null,null,null,1217]
[null,null,null,null,null,null,null,null,null,null,null,null,null,null,null,null,null,1218]
[null,null,null,null,null,null,null,null,null,null,null,null,null,null,null,null,null,1219]
[null,null,null,null,null,null,null,null,null,null,null,null,null,null,null,null,null,1220]
[null,null,null,null,null,null,null,null,null,null,null,null,null,null,null,null,null,1221]
[null,null,null,null,null,null,null,null,null,null,null,null,null,null,null,null,null,1222]
[null,null,null,null,null,null,null,null,null,null,null,null,null,null,null,null,null,1223]
[null,null,null,null,null,null,null,null,null,null,null,null,null,null,null,null,null,1224]
[null,null,null,null,null,null,null,null,null,null,null,null,null,null,null,null,null,1225]
[null,null,null,null,null,null,null,null,null,null,null,null,null,null,null,null,null,1226]
[null,null,null,null,null,null,null,null,null,null,null,null,null,null,null,null,null,1227]
[null,null,null,null,null,null,null,null,null,null,null,null,null,null,null,null,null,1228]
[null,null,null,null,null,null,null,null,null,null,null,null,null,null,null,null,null,1229]
[null,null,null,null,null,null,null,null,null,null,null,null,null,null,null,null,null,1230]
[null,null,null,null,null,null,null,null,null,null,null,null,null,null,null,null,null,1231]

{"sheet":"受診記録","index":2,"n_rows":109,"n_cols":37,"rows_kept":109,"cut":false,"hidden":false,"merged":[[6,21,9,21],[5,23,5,31],[8,23,8,33],[2,23,2,24],[4,15,6,15]]}
[]
[null,null,null,null,null,null,null,null,null,null,null,null,null,null,null,null,null,null,{"$f":"IF(E3*F3*G3>0,1,0)","v":1},{"$f":"DATE(R3,S3,T3)","v":"2012-06-06"}]
[null,null,null,null,2012,6,6,"←　記入日付の入力（省略可能）",null,null,null,null,null,null,null,null,null,{"$f":"YEAR(NOW())","v":2012},{"$f":"MONTH(NOW())","v":6},{"$f":"DAY(NOW())","v":6},null,null,null,2012,null,5,"の記録を数える"]
[null,null,null,null,null,null,null,null,null,null,null,null,null,null,null,null,null,null,{"$f":"IF(S2=1,T4,T2)","v":"2012-06-06"},{"$f":"DATE(E3,F3,G3)","v":"2012-06-06"}]
[null,null,null,null,null,null,null,null,null,null,null,null,null,null,null,"ＡＫ列の備考リストに記入した語句から選べます。\nあとで入院要因による検索ができるようになります。"]
[null,"受診と入院の記録",null,null,null,null,null,null,null,null,null,null,null,null,null,null,null,{"$f":"X3","v":2012},{"$f":"Z3","v":5},1,null,null,null,{"$f":"IF(X3*Z3=0,\"選ばれた期間の記録数\",X3&\"年　\"&Z3&\"月　\"&\"の記録数\")","v":"2012年　5月　の記録数"}]
[null,null,null,null,{"$f":"COUNT(E10:E109)","v":0},0,0,0,0,0,0,0,0,null,null,null,null,{"$f":"IF(Z3=12,X3+1,X3)","v":2012},{"$f":"IF(Z3=12,1,Z3+1)","v":6},1,null,"青地の文字を右クリックすると記録をソートします。\n名前も右クリックで記録削除します。",null,{"$f":"X10-(COUNTIF(X13:X30013,\"<=\"&$T$8)+COUNTIF(X13:X30013,\">=\"&$T$9))","v":0},0,0,0,0,0,0,0,0]
[null,null,null,null,null,null,null,null,null,null,null,null,null,null,null,null,null,null,null,{"$f":"DATE(R6,S6,T6)","v":"2012-05-01"}]
[null,"番号","お名前","フリガナ","内科","外科","精神科","歯科","眼科","皮膚科","その他","入院","退院","経過日数","確定日数","備考（入院要因）",null,null,"判定",{"$f":"DATE(R7,S7,T7)-1","v":"2012-05-31"},null,null,null,"記録された総数",null,null,null,null,null,null,null,null,null,null,null,null,"備考リスト"]
[null,1,null,null,null,null,null,null,null,null,null,null,null,{"$f":"IF(L10=\"\",\"\",ROUNDDOWN(NOW()-L10,0))","v":""},{"$f":"IF(L10=\"\",\"\",MAX(0,M10-L10))","v":""},null,null,null,{"$f":"IF(SUM(E10:M10)>0,1,0)","v":0},null,"",null,"",{"$f":"COUNT(X13:X30013)","v":0},0,0,0,0,0,0,0,0,null,{"$f":"SUM(AH13:AH30013)","v":0},null,null,"脳血管疾患"]
[null,2,null,null,null,null,null,null,null,null,null,null,null,{"$f":"IF(L11=\"\",\"\",ROUNDDOWN(NOW()-L11,0))","v":""},{"$f":"IF(L11=\"\",\"\",MAX(0,M11-L11))","v":""},null,null,null,{"$f":"IF(SUM(E11:M11)>0,1,0)","v":0},null,"","","","","","",null,null,null,null,null,null,null,null,null,null,"呼吸器疾患（肺炎）"]
[null,3,null,null,null,null,null,null,null,null,null,null,null,"","",null,null,null,0,null,"","お名前","フリガナ","内科","外科","精神科","歯科","眼科","皮膚科","その他","入院","退院","経過日数","入院日数","備考",null,"内臓疾患"]
[null,4,null,null,null,null,null,null,null,null,null,null,null,"","",null,null,null,0,null,"",null,null,null,null,null,null,null,null,null,null,null,null,null,null,null,"電解質異常"]
[null,5,null,null,null,null,null,null,null,null,null,null,null,"","",null,null,null,0,null,"",null,null,null,null,null,null,null,null,null,null,null,null,null,null,null,"意識低下"]
[null,6,null,null,null,null,null,null,null,null,null,null,null,"","",null,null,null,0,null,"",null,null,null,null,null,null,null,null,null,null,null,null,null,null,null,"心疾患"]
[null,7,null,null,null,null,null,null,null,null,null,null,null,"","",null,null,null,0,null,"",null,null,null,null,null,null,null,null,null,null,null,null,null,null,null,"悪性新生物"]
[null,8,null,null,null,null,null,null,null,null,null,null,null,"","",null,null,null,0,null,"",null,null,null,null,null,null,null,null,null,null,null,null,null,null,null,"吐血・下血"]
[null,9,null,null,null,null,null,null,null,null,null,null,null,"","",null,null,null,0,null,"",null,null,null,null,null,null,null,null,null,null,null,null,null,null,null,"嘔吐"]
[null,10,null,null,null,null,null,null,null,null,null,null,null,"","",null,null,null,0,null,""]
[null,11,null,null,null,null,null,null,null,null,null,null,null,"","",null,null,null,0,null,""]
[null,12,null,null,null,null,null,null,null,null,null,null,null,"","",null,null,null,0,null,""]
[null,13,null,null,null,null,null,null,null,null,null,null,null,"","",null,null,null,0,null,""]
[null,14,null,null,null,null,null,null,null,null,null,null,null,"","",null,null,null,0,null,""]
[null,15,null,null,null,null,null,null,null,null,null,null,null,"","",null,null,null,0,null,""]
[null,16,null,null,null,null,null,null,null,null,null,null,null,"","",null,null,null,0,null,""]
[null,17,null,null,null,null,null,null,null,null,null,null,null,"","",null,null,null,0,null,""]
[null,18,null,null,null,null,null,null,null,null,null,null,null,"","",null,null,null,0,null,""]
[null,19,null,null,null,null,null,null,null,null,null,null,null,"","",null,null,null,0,null,""]
[null,20,null,null,null,null,null,null,null,null,null,null,null,"","",null,null,null,0,null,""]
[null,21,null,null,null,null,null,null,null,null,null,null,null,"","",null,null,null,0,null,""]
[null,22,null,null,null,null,null,null,null,null,null,null,null,"","",null,null,null,0,null,""]
[null,23,null,null,null,null,null,null,null,null,null,null,null,"","",null,null,null,0,null,""]
[null,24,null,null,null,null,null,null,null,null,null,null,null,"","",null,null,null,0,null,""]
[null,25,null,null,null,null,null,null,null,null,null,null,null,"","",null,null,null,0,null,""]
[null,26,null,null,null,null,null,null,null,null,null,null,null,"","",null,null,null,0,null,""]
[null,27,null,null,null,null,null,null,null,null,null,null,null,"","",null,null,null,0,null,""]
[null,28,null,null,null,null,null,null,null,null,null,null,null,"","",null,null,null,0,null,""]
[null,29,null,null,null,null,null,null,null,null,null,null,null,"","",null,null,null,0,null,""]
[null,30,null,null,null,null,null,null,null,null,null,null,null,"","",null,null,null,0,null,""]
[null,31,null,null,null,null,null,null,null,null,null,null,null,"","",null,null,null,0,null,""]
[null,32,null,null,null,null,null,null,null,null,null,null,null,"","",null,null,null,0,null,""]
[null,33,null,null,null,null,null,null,null,null,null,null,null,"","",null,null,null,0,null,""]
[null,34,null,null,null,null,null,null,null,null,null,null,null,"","",null,null,null,0,null,""]
[null,35,null,null,null,null,null,null,null,null,null,null,null,"","",null,null,null,0,null,""]
[null,36,null,null,null,null,null,null,null,null,null,null,null,"","",null,null,null,0,null,""]
[null,37,null,null,null,null,null,null,null,null,null,null,null,"","",null,null,null,0,null,""]
[null,38,null,null,null,null,null,null,null,null,null,null,null,"","",null,null,null,0,null,""]
[null,39,null,null,null,null,null,null,null,null,null,null,null,"","",null,null,null,0,null,""]
[null,40,null,null,null,null,null,null,null,null,null,null,null,"","",null,null,null,0,null,""]
[null,41,null,null,null,null,null,null,null,null,null,null,null,"","",null,null,null,0,null,""]
[null,42,null,null,null,null,null,null,null,null,null,null,null,"","",null,null,null,0,null,""]
[null,43,null,null,null,null,null,null,null,null,null,null,null,"","",null,null,null,0,null,""]
[null,44,null,null,null,null,null,null,null,null,null,null,null,"","",null,null,null,0,null,""]
[null,45,null,null,null,null,null,null,null,null,null,null,null,"","",null,null,null,0,null,""]
[null,46,null,null,null,null,null,null,null,null,null,null,null,"","",null,null,null,0,null,""]
[null,47,null,null,null,null,null,null,null,null,null,null,null,"","",null,null,null,0,null,""]
[null,48,null,null,null,null,null,null,null,null,null,null,null,"","",null,null,null,0,null,""]
[null,49,null,null,null,null,null,null,null,null,null,null,null,"","",null,null,null,0,null,""]
[null,50,null,null,null,null,null,null,null,null,null,null,null,"","",null,null,null,0,null,""]
[null,51,null,null,null,null,null,null,null,null,null,null,null,"","",null,null,null,0,null,""]
[null,52,null,null,null,null,null,null,null,null,null,null,null,"","",null,null,null,0,null,""]
[null,53,null,null,null,null,null,null,null,null,null,null,null,"","",null,null,null,0,null,""]
[null,54,null,null,null,null,null,null,null,null,null,null,null,"","",null,null,null,0,null,""]
[null,55,null,null,null,null,null,null,null,null,null,null,null,"","",null,null,null,0,null,""]
[null,56,null,null,null,null,null,null,null,null,null,null,null,"","",null,null,null,0,null,""]
[null,57,null,null,null,null,null,null,null,null,null,null,null,"","",null,null,null,0,null,""]
[null,58,null,null,null,null,null,null,null,null,null,null,null,"","",null,null,null,0,null,""]
[null,59,null,null,null,null,null,null,null,null,null,null,null,"","",null,null,null,0,null,""]
[null,60,null,null,null,null,null,null,null,null,null,null,null,"","",null,null,null,0,null,""]
[null,61,null,null,null,null,null,null,null,null,null,null,null,"","",null,null,null,0,null,""]
[null,62,null,null,null,null,null,null,null,null,null,null,null,"","",null,null,null,0,null,""]
[null,63,null,null,null,null,null,null,null,null,null,null,null,"","",null,null,null,0,null,""]
[null,64,null,null,null,null,null,null,null,null,null,null,null,"","",null,null,null,0,null,""]
[null,65,null,null,null,null,null,null,null,null,null,null,null,"","",null,null,null,0,null,""]
[null,66,null,null,null,null,null,null,null,null,null,null,null,{"$f":"IF(L75=\"\",\"\",ROUNDDOWN(NOW()-L75,0))","v":""},{"$f":"IF(L75=\"\",\"\",MAX(0,M75-L75))","v":""},null,null,null,{"$f":"IF(SUM(E75:M75)>0,1,0)","v":0},null,""]
[null,67,null,null,null,null,null,null,null,null,null,null,null,"","",null,null,null,0]
[null,68,null,null,null,null,null,null,null,null,null,null,null,"","",null,null,null,0]
[null,69,null,null,null,null,null,null,null,null,null,null,null,"","",null,null,null,0]
[null,70,null,null,null,null,null,null,null,null,null,null,null,"","",null,null,null,0]
[null,71,null,null,null,null,null,null,null,null,null,null,null,"","",null,null,null,0]
[null,72,null,null,null,null,null,null,null,null,null,null,null,"","",null,null,null,0]
[null,73,null,null,null,null,null,null,null,null,null,null,null,"","",null,null,null,0]
[null,74,null,null,null,null,null,null,null,null,null,null,null,"","",null,null,null,0]
[null,75,null,null,null,null,null,null,null,null,null,null,null,"","",null,null,null,0]
[null,76,null,null,null,null,null,null,null,null,null,null,null,"","",null,null,null,0]
[null,77,null,null,null,null,null,null,null,null,null,null,null,"","",null,null,null,0]
[null,78,null,null,null,null,null,null,null,null,null,null,null,"","",null,null,null,0]
[null,79,null,null,null,null,null,null,null,null,null,null,null,"","",null,null,null,0]
[null,80,null,null,null,null,null,null,null,null,null,null,null,"","",null,null,null,0]
[null,81,null,null,null,null,null,null,null,null,null,null,null,"","",null,null,null,0]
[null,82,null,null,null,null,null,null,null,null,null,null,null,"","",null,null,null,0]
[null,83,null,null,null,null,null,null,null,null,null,null,null,"","",null,null,null,0]
[null,84,null,null,null,null,null,null,null,null,null,null,null,"","",null,null,null,0]
[null,85,null,null,null,null,null,null,null,null,null,null,null,"","",null,null,null,0]
[null,86,null,null,null,null,null,null,null,null,null,null,null,"","",null,null,null,0]
[null,87,null,null,null,null,null,null,null,null,null,null,null,"","",null,null,null,0]
[null,88,null,null,null,null,null,null,null,null,null,null,null,"","",null,null,null,0]
[null,89,null,null,null,null,null,null,null,null,null,null,null,"","",null,null,null,0]
[null,90,null,null,null,null,null,null,null,null,null,null,null,"","",null,null,null,0]
[null,91,null,null,null,null,null,null,null,null,null,null,null,"","",null,null,null,0]
[null,92,null,null,null,null,null,null,null,null,null,null,null,"","",null,null,null,0]
[null,93,null,null,null,null,null,null,null,null,null,null,null,"","",null,null,null,0]
[null,94,null,null,null,null,null,null,null,null,null,null,null,"","",null,null,null,0]
[null,95,null,null,null,null,null,null,null,null,null,null,null,"","",null,null,null,0]
[null,96,null,null,null,null,null,null,null,null,null,null,null,"","",null,null,null,0]
[null,97,null,null,null,null,null,null,null,null,null,null,null,"","",null,null,null,0]
[null,98,null,null,null,null,null,null,null,null,null,null,null,"","",null,null,null,0]
[null,99,null,null,null,null,null,null,null,null,null,null,null,"","",null,null,null,0]
[null,100,null,null,null,null,null,null,null,null,null,null,null,"","",null,null,null,0]

{"sheet":"申送事項","index":3,"n_rows":118,"n_cols":45,"rows_kept":118,"cut":false,"hidden":false,"merged":[[95,20,95,21],[95,22,95,23],[95,24,95,25],[94,20,94,21],[94,22,94,23],[94,24,94,25],[98,20,98,21],[98,22,98,23],[98,24,98,25],[96,20,96,21],[96,22,96,23],[96,24,96,25],[97,20,97,21],[97,22,97,23],[97,24,97,25],[93,20,93,21],[93,22,93,23],[93,24,93,25],[90,20,90,21],[90,22,90,23],[90,24,90,25],[91,20,91,21],[91,22,91,23],[91,24,91,25],[86,20,86,21],[86,22,86,23],[86,24,86,25],[87,20,87,21],[87,22,87,23],[87,24,87,25],[92,20,92,21],[92,22,92,23],[92,24,92,25],[57,20,57,21],[57,22,57,23],[57,24,57,25],[58,20,58,21],[58,22,58,23],[58,24,58,25],[59,20,59,21],[84,20,84,21],[84,22,84,23],[84,24,84,25],[82,20,82,21],[82,22,82,23],[82,24,82,25],[83,20,83,21],[83,22,83,23],[83,24,83,25],[59,22,59,23],[59,24,59,25],[60,20,60,21],[60,22,60,23],[60,24,60,25],[61,20,61,21],[61,22,61,23],[61,24,61,25],[53,20,53,21],[53,22,53,23],[53,24,53,25],[54,20,54,21],[54,22,54,23],[54,24,54,25],[56,20,56,21],[56,22,56,23],[56,24,56,25],[51,20,51,21],[51,22,51,23],[51,24,51,25],[52,20,52,21],[52,22,52,23],[52,24,52,25],[49,20,49,21],[49,22,49,23],[49,24,49,25],[50,20,50,21],[50,22,50,23],[50,24,50,25],[47,20,47,21],[47,22,47,23],[47,24,47,25],[48,20,48,21],[48,22,48,23],[48,24,48,25],[45,20,45,21],[45,22,45,23],[45,24,45,25],[46,20,46,21],[46,22,46,23],[46,24,46,25],[40,24,40,25],[41,20,41,21],[43,20,43,21],[43,22,43,23],[43,24,43,25],[44,20,44,21],[44,22,44,23],[44,24,44,25],[41,22,41,23],[41,24,41,25],[40,20,40,21],[40,22,40,23],[1,11,1,12],[1,16,1,17],[4,13,8,18],[3,14,3,18],[1,31,1,33],[42,20,42,21],[42,22,42,23],[42,24,42,25],[20,24,24,29],[26,24,30,29],[24,13,24,14],[17,13,17,14],[18,13,18,14],[19,13,19,14],[20,13,20,14],[13,13,13,14],[14,13,14,14],[15,13,15,14],[16,13,16,14],[28,13,28,14],[29,13,29,14],[30,13,30,14],[31,13,31,14],[21,13,21,14],[25,13,25,14],[26,13,26,14],[27,13,27,14],[22,13,22,14],[23,13,23,14],[32,13,32,14],[33,13,33,14],[13,15,13,16],[14,15,14,16],[15,15,15,16],[16,15,16,16],[17,15,17,16],[18,15,18,16],[19,15,19,16],[20,15,20,16],[27,15,27,16],[28,15,28,16],[29,15,29,16],[30,15,30,16],[21,15,21,16],[24,15,24,16],[25,15,25,16],[26,15,26,16],[22,15,22,16],[23,15,23,16],[31,15,31,16],[32,15,32,16],[33,15,33,16],[13,17,13,18],[14,17,14,18],[15,17,15,18],[16,17,16,18],[17,17,17,18],[18,17,18,18],[19,17,19,18],[24,17,24,18],[25,17,25,18],[26,17,26,18],[27,17,27,18],[20,17,20,18],[21,17,21,18],[22,17,22,18],[23,17,23,18],[38,24,38,25],[39,20,39,21],[39,22,39,23],[39,24,39,25],[28,17,28,18],[33,17,33,18],[29,17,29,18],[30,17,30,18],[31,17,31,18],[32,17,32,18],[36,20,36,21],[36,22,36,23],[36,24,36,25],[37,20,37,21],[37,22,37,23],[37,24,37,25],[38,20,38,21],[38,22,38,23],[34,20,34,21],[34,22,34,23],[34,24,34,25],[35,20,35,21],[35,22,35,23],[35,24,35,25],[62,20,62,21],[62,22,62,23],[62,24,62,25],[63,20,63,21],[63,22,63,23],[63,24,63,25],[64,20,64,21],[64,22,64,23],[64,24,64,25],[65,20,65,21],[65,22,65,23],[65,24,65,25],[66,20,66,21],[66,22,66,23],[66,24,66,25],[67,20,67,21],[67,22,67,23],[67,24,67,25],[68,20,68,21],[68,22,68,23],[68,24,68,25],[69,20,69,21],[69,22,69,23],[69,24,69,25],[70,20,70,21],[70,22,70,23],[70,24,70,25],[71,20,71,21],[71,22,71,23],[71,24,71,25],[72,20,72,21],[72,22,72,23],[72,24,72,25],[73,20,73,21],[73,22,73,23],[73,24,73,25],[74,20,74,21],[74,22,74,23],[74,24,74,25],[75,20,75,21],[75,22,75,23],[75,24,75,25],[76,20,76,21],[76,22,76,23],[76,24,76,25],[100,20,100,21],[100,22,100,23],[100,24,100,25],[78,20,78,21],[78,22,78,23],[78,24,78,25],[79,20,79,21],[79,22,79,23],[79,24,79,25],[80,20,80,21],[80,22,80,23],[80,24,80,25],[81,20,81,21],[81,22,81,23],[81,24,81,25],[85,20,85,21],[85,22,85,23],[85,24,85,25],[88,20,88,21],[88,22,88,23],[88,24,88,25],[89,20,89,21],[89,22,89,23],[89,24,89,25],[101,20,101,21],[101,22,101,23],[101,24,101,25],[102,20,102,21],[102,22,102,23],[102,24,102,25],[103,20,103,21],[103,22,103,23],[103,24,103,25],[104,20,104,21],[104,22,104,23],[104,24,104,25],[105,20,105,21],[105,22,105,23],[105,24,105,25],[106,20,106,21],[106,22,106,23],[106,24,106,25],[107,20,107,21],[107,22,107,23],[107,24,107,25],[108,20,108,21],[108,22,108,23],[108,24,108,25],[109,20,109,21],[109,22,109,23],[109,24,109,25],[110,20,110,21],[110,22,110,23],[110,24,110,25],[111,20,111,21],[111,22,111,23],[111,24,111,25],[112,20,112,21],[112,22,112,23],[112,24,112,25],[113,20,113,21],[113,22,113,23],[113,24,113,25],[114,20,114,21],[114,22,114,23],[114,24,114,25],[115,20,115,21],[115,22,115,23],[115,24,115,25],[119,20,119,21],[119,22,119,23],[119,24,119,25],[120,20,120,21],[120,22,120,23],[120,24,120,25],[116,20,116,21],[116,22,116,23],[116,24,116,25],[117,20,117,21],[117,22,117,23],[117,24,117,25],[118,20,118,21],[118,22,118,23],[118,24,118,25]]}
[null,null,null,null,null,null,null,null,null,null,null,null,null,"月","日",null,null,null,null,null,null,null,null,null,null,null,null,null,null,null,null,null,null,null,null,36]
[null,null,"フリガナ","記録用名簿","フリガナ","（省略可能）","フリガナ",null,null,"タイトル\n（省略可能）",null,"記録したい\n日付（省略可能）",null,null,null,{"$f":"IF(N2*O2=0,\"看護日誌の現在日付\",\"決定日付\")","v":"看護日誌の現在日付"},{"$f":"IF($N$2*$O$2=0,基本情報!$F$7&\"月\"&基本情報!$G$7&\"日\",$N$2&\"月\"&$O$2&\"日\")","v":"月日"},null,null,null,null,null,null,null,null,null,null,null,null,null,null,"記事入力用名簿\n（個人記録としては残りません）"]
[null,{"$f":"名簿!D77","v":0},{"$f":"名簿!E77","v":0},{"$f":"名簿!D42","v":0},{"$f":"名簿!E42","v":0},{"$f":"名簿!D7","v":0},{"$f":"名簿!E7","v":0},null,null,"重要連絡事項",null,null,null,null,null,null,null,null,null,null,null,null,null,null,null,null,null,null,null,null,null,{"$f":"$F$3&\"　\"","v":"0　"},{"$f":"$D$3&\"　\"","v":"0　"},{"$f":"$B$3&\"　\"","v":"0　"}]
[null,{"$f":"名簿!D78","v":0},{"$f":"名簿!E78","v":0},{"$f":"名簿!D43","v":0},{"$f":"名簿!E43","v":0},{"$f":"名簿!D8","v":0},{"$f":"名簿!E8","v":0},null,null,"排便チェック者",null,"記録される人\n（省略可能）",null,"タイトル\n（省略可能）",{"$f":"$Y$13","v":0},null,null,null,null,null,null,"体温","最高血圧","最低血圧","脈拍",null,null,null,null,null,null,{"$f":"$F$4&\"　\"","v":"0　"},{"$f":"$D$4&\"　\"","v":"0　"},{"$f":"$B$4&\"　\"","v":"0　"},null,"番号","検索１","検索２","検索３",-10000,"日付番号","重要","お名前","フリガナ","記事"]
[null,{"$f":"名簿!D79","v":0},{"$f":"名簿!E79","v":0},{"$f":"名簿!D44","v":0},{"$f":"名簿!E44","v":0},{"$f":"名簿!D9","v":0},{"$f":"名簿!E9","v":0},null,null,"引継時発熱者",null,{"$f":"V13","v":0},null,null,null,null,null,null,null,null,null,{"$f":"IF($N$12=\"\",\"\",\"ＫＴ\"&$N$12&\" \")","v":"ＫＴ37 "},{"$f":"IF($O$12=\"\",\"\",\"ＢＰ\"&$O$12&\"/\")","v":"ＢＰ112/"},{"$f":"IF($P$12=\"\",\"\",$P$12&\" \")","v":"68 "},{"$f":"IF($Q$12=\"\",\"\",\"Ｐ\"&$Q$12&\" \")","v":"Ｐ89 "},null,null,null,null,null,null,{"$f":"$F$5&\"　\"","v":"0　"},{"$f":"$D$5&\"　\"","v":"0　"},{"$f":"$B$5&\"　\"","v":"0　"},null,null,null,{"$f":"AO5&AR5","v":"606ヲ"},null,null,{"$f":"IF($N$2*$O$2=0,基本情報!$E$7*10000+基本情報!$F$3*100+基本情報!$G$3,基本情報!$E$7*10000+$N$2*100+$O$2)","v":606},null,{"$f":"IF($V$13=\"\",$O$4,$V$13)","v":0},{"$f":"IF($W$13=\"\",\"ヲ\",$W$13)","v":"ヲ"},{"$f":"$N$5","v":0}]
[null,{"$f":"名簿!D80","v":0},{"$f":"名簿!E80","v":0},{"$f":"名簿!D45","v":0},{"$f":"名簿!E45","v":0},{"$f":"名簿!D10","v":0},{"$f":"名簿!E10","v":0},null,null,"禁食者",null,null,null,null,null,null,null,null,null,null,null,null,null,null,null,null,null,null,null,null,null,{"$f":"$F$6&\"　\"","v":"0　"},{"$f":"$D$6&\"　\"","v":"0　"},{"$f":"$B$6&\"　\"","v":"0　"}]
[null,{"$f":"名簿!D81","v":0},{"$f":"名簿!E81","v":0},{"$f":"名簿!D46","v":0},{"$f":"名簿!E46","v":0},{"$f":"名簿!D11","v":0},{"$f":"名簿!E11","v":0},null,null,"要観察者",null,null,null,null,null,null,null,null,null,null,null,{"$f":"$V$5&$W$5&$X$5&$Y$5&\"　\"","v":"ＫＴ37 ＢＰ112/68 Ｐ89 　"},null,null,{"$f":"AO5","v":606},{"$f":"IF(看護日誌!F2=0,0,SUM(看護日誌!G6:G60)/看護日誌!F2)","v":0},{"$f":"IF(L12=\"〇\",1,IF(N5=\"\",0,IF(看護日誌!F2=0,1,IF(Y7-Z7=0,1,0)*IF(N5=\"\",0,1))))","v":1},null,null,null,null,{"$f":"$F$7&\"　\"","v":"0　"},{"$f":"$D$7&\"　\"","v":"0　"},{"$f":"$B$7&\"　\"","v":"0　"}]
[null,{"$f":"名簿!D82","v":0},{"$f":"名簿!E82","v":0},{"$f":"名簿!D47","v":0},{"$f":"名簿!E47","v":0},{"$f":"名簿!D12","v":0},{"$f":"名簿!E12","v":0},null,null,"主治医相談　　鈴木啓之先生",null,null,null,null,null,null,null,null,null,null,null,null,null,null,null,null,null,null,null,null,null,{"$f":"$F$8&\"　\"","v":"0　"},{"$f":"$D$8&\"　\"","v":"0　"},{"$f":"$B$8&\"　\"","v":"0　"}]
[null,{"$f":"名簿!D83","v":0},{"$f":"名簿!E83","v":0},{"$f":"名簿!D48","v":0},{"$f":"名簿!E48","v":0},{"$f":"名簿!D13","v":0},{"$f":"名簿!E13","v":0},null,null,"主治医相談　　鈴木章浩先生",null,null,null,null,null,null,null,null,null,null,null,null,null,null,"発熱者",null,null,null,null,null,null,{"$f":"$F$9&\"　\"","v":"0　"},{"$f":"$D$9&\"　\"","v":"0　"},{"$f":"$B$9&\"　\"","v":"0　"}]
[null,{"$f":"名簿!D84","v":0},{"$f":"名簿!E84","v":0},{"$f":"名簿!D49","v":0},{"$f":"名簿!E49","v":0},{"$f":"名簿!D14","v":0},{"$f":"名簿!E14","v":0},null,null,"主治医相談　　木村玲子先生",null,null,null,{"$f":"IF(L5=0,\"【注意！】記録される人が入力されていませんがよろしいですか？\",\"\")","v":"【注意！】記録される人が入力されていませんがよろしいですか？"},null,null,null,null,null,null,null,null,null,null,{"$f":"基本情報!$J$17","v":""},null,null,null,null,null,null,{"$f":"$F$10&\"　\"","v":"0　"},{"$f":"$D$10&\"　\"","v":"0　"},{"$f":"$B$10&\"　\"","v":"0　"}]
[null,{"$f":"名簿!D85","v":0},{"$f":"名簿!E85","v":0},{"$f":"名簿!D50","v":0},{"$f":"名簿!E50","v":0},{"$f":"名簿!D15","v":0},{"$f":"名簿!E15","v":0},null,null,"本日入院",null,"強制入力許可",null,"体温","最高血圧","最低血圧","脈拍",null,null,null,null,null,null,null,null,null,null,null,null,null,null,{"$f":"$F$11&\"　\"","v":"0　"},{"$f":"$D$11&\"　\"","v":"0　"},{"$f":"$B$11&\"　\"","v":"0　"}]
[null,{"$f":"名簿!D86","v":0},{"$f":"名簿!E86","v":0},{"$f":"名簿!D51","v":0},{"$f":"名簿!E51","v":0},{"$f":"名簿!D16","v":0},{"$f":"名簿!E16","v":0},null,null,"本日退院",null,"〇",null,37,112,68,89,null,null,null,null,"お名前","フリガナ",null,"タイトル",null,null,null,null,null,null,{"$f":"$F$12&\"　\"","v":"0　"},{"$f":"$D$12&\"　\"","v":"0　"},{"$f":"$B$12&\"　\"","v":"0　"}]
[null,{"$f":"名簿!D87","v":0},{"$f":"名簿!E87","v":0},{"$f":"名簿!D52","v":0},{"$f":"名簿!E52","v":0},{"$f":"名簿!D17","v":0},{"$f":"名簿!E17","v":0},null,null,"死亡退所",null,null,null,null,null,null,null,null,null,null,null,null,null,null,null,null,null,null,null,null,null,{"$f":"$F$13&\"　\"","v":"0　"},{"$f":"$D$13&\"　\"","v":"0　"},{"$f":"$B$13&\"　\"","v":"0　"}]
[null,{"$f":"名簿!D88","v":0},{"$f":"名簿!E88","v":0},{"$f":"名簿!D53","v":0},{"$f":"名簿!E53","v":0},{"$f":"名簿!D18","v":0},{"$f":"名簿!E18","v":0},null,null,"退院予定",null,null,null,"排泄関連",null,"皮膚の状況",null,"その他３",null,null,null,null,null,null,null,null,null,null,null,null,null,{"$f":"$F$14&\"　\"","v":"0　"},{"$f":"$D$14&\"　\"","v":"0　"},{"$f":"$B$14&\"　\"","v":"0　"}]
[null,{"$f":"名簿!D89","v":0},{"$f":"名簿!E89","v":0},{"$f":"名簿!D54","v":0},{"$f":"名簿!E54","v":0},{"$f":"名簿!D19","v":0},{"$f":"名簿!E19","v":0},null,null,"辰巳病院受診",null,null,null,"（-２）　",null,"発疹あります。",null,"心臓",null,null,null,null,null,null,"記事",null,null,null,null,null,null,{"$f":"$F$15&\"　\"","v":"0　"},{"$f":"$D$15&\"　\"","v":"0　"},{"$f":"$B$15&\"　\"","v":"0　"}]
[null,{"$f":"名簿!D90","v":0},{"$f":"名簿!E90","v":0},{"$f":"名簿!D55","v":0},{"$f":"名簿!E55","v":0},{"$f":"名簿!D20","v":0},{"$f":"名簿!E20","v":0},null,null,"眼科受診",null,null,null,"（-３）　",null,"発赤が見られます。",null,"肝臓",null,null,null,null,null,null,null,null,null,null,null,null,null,{"$f":"$F$16&\"　\"","v":"0　"},{"$f":"$D$16&\"　\"","v":"0　"},{"$f":"$B$16&\"　\"","v":"0　"}]
[null,{"$f":"名簿!D91","v":0},{"$f":"名簿!E91","v":0},{"$f":"名簿!D56","v":0},{"$f":"名簿!E56","v":0},{"$f":"名簿!D21","v":0},{"$f":"名簿!E21","v":0},null,null,"リハビリ実施",null,null,null,"（-４）　",null,"褥瘡が悪化しています。",null,"肺",null,null,null,null,null,null,null,null,null,null,null,null,null,{"$f":"$F$17&\"　\"","v":"0　"},{"$f":"$D$17&\"　\"","v":"0　"},{"$f":"$B$17&\"　\"","v":"0　"}]
[null,{"$f":"名簿!D92","v":0},{"$f":"名簿!E92","v":0},{"$f":"名簿!D57","v":0},{"$f":"名簿!E57","v":0},{"$f":"名簿!D22","v":0},{"$f":"名簿!E22","v":0},null,null,"インフルエンザ\n予防接種",null,null,null,"（-５）　",null,"皮膚状態の改善が見られます。",null,"食道",null,null,null,null,null,null,null,null,null,null,null,null,null,{"$f":"$F$18&\"　\"","v":"0　"},{"$f":"$D$18&\"　\"","v":"0　"},{"$f":"$B$18&\"　\"","v":"0　"}]
[null,{"$f":"名簿!D93","v":0},{"$f":"名簿!E93","v":0},{"$f":"名簿!D58","v":0},{"$f":"名簿!E58","v":0},{"$f":"名簿!D23","v":0},{"$f":"名簿!E23","v":0},null,null,"定期健康診断",null,null,null,"（-６）　",null,"壊死進行",null,"膵臓",null,null,null,null,null,null,null,null,null,null,null,null,null,{"$f":"$F$19&\"　\"","v":"0　"},{"$f":"$D$19&\"　\"","v":"0　"},{"$f":"$B$19&\"　\"","v":"0　"}]
[null,{"$f":"名簿!D94","v":0},{"$f":"名簿!E94","v":0},{"$f":"名簿!D59","v":0},{"$f":"名簿!E59","v":0},{"$f":"名簿!D24","v":0},{"$f":"名簿!E24","v":0},null,null,"外出の予定",null,null,null,"（＋大）　",null,"血行不良",null,"腎臓",null,null,null,null,null,null,null,null,null,null,null,null,null,{"$f":"$F$20&\"　\"","v":"0　"},{"$f":"$D$20&\"　\"","v":"0　"},{"$f":"$B$20&\"　\"","v":"0　"}]
[null,{"$f":"名簿!D95","v":0},{"$f":"名簿!E95","v":0},{"$f":"名簿!D60","v":0},{"$f":"名簿!E60","v":0},{"$f":"名簿!D25","v":0},{"$f":"名簿!E25","v":0},null,null,null,null,null,null,"（＋中）　",null,"褥瘡になりかけています。",null,"肝臓",null,null,null,null,null,null,{"$f":"$N$5&$Y$16","v":""},null,null,null,null,null,null,{"$f":"$F$21&\"　\"","v":"0　"},{"$f":"$D$21&\"　\"","v":"0　"},{"$f":"$B$21&\"　\"","v":"0　"}]
[null,{"$f":"名簿!D96","v":0},{"$f":"名簿!E96","v":0},{"$f":"名簿!D61","v":0},{"$f":"名簿!E61","v":0},{"$f":"名簿!D26","v":0},{"$f":"名簿!E26","v":0},null,null,null,null,null,null,"（＋小）　",null,"出血斑があり",null,"肝機能",null,null,null,null,null,null,null,null,null,null,null,null,null,{"$f":"$F$22&\"　\"","v":"0　"},{"$f":"$D$22&\"　\"","v":"0　"},{"$f":"$B$22&\"　\"","v":"0　"}]
[null,{"$f":"名簿!D97","v":0},{"$f":"名簿!E97","v":0},{"$f":"名簿!D62","v":0},{"$f":"名簿!E62","v":0},{"$f":"名簿!D27","v":0},{"$f":"名簿!E27","v":0},null,null,null,null,null,null,"腹部膨満感あり",null,"打撲痕があり",null,"直腸",null,null,null,null,null,null,null,null,null,null,null,null,null,{"$f":"$F$23&\"　\"","v":"0　"},{"$f":"$D$23&\"　\"","v":"0　"},{"$f":"$B$23&\"　\"","v":"0　"}]
[null,{"$f":"名簿!D98","v":0},{"$f":"名簿!E98","v":0},{"$f":"名簿!D63","v":0},{"$f":"名簿!E63","v":0},{"$f":"名簿!D28","v":0},{"$f":"名簿!E28","v":0},null,null,null,null,null,null,"苦しいとの訴えがあり",null,"出血して",null,"大腸",null,null,null,null,null,null,null,null,null,null,null,null,null,{"$f":"$F$24&\"　\"","v":"0　"},{"$f":"$D$24&\"　\"","v":"0　"},{"$f":"$B$24&\"　\"","v":"0　"}]
[null,{"$f":"名簿!D99","v":0},{"$f":"名簿!E99","v":0},{"$f":"名簿!D64","v":0},{"$f":"名簿!E64","v":0},{"$f":"名簿!D29","v":0},{"$f":"名簿!E29","v":0},null,null,null,null,null,null,"ハルン漏れがあり",null,"増悪して",null,"膀胱",null,null,null,null,null,null,null,null,null,null,null,null,null,{"$f":"$F$25&\"　\"","v":"0　"},{"$f":"$D$25&\"　\"","v":"0　"},{"$f":"$B$25&\"　\"","v":"0　"}]
[null,{"$f":"名簿!D100","v":0},{"$f":"名簿!E100","v":0},{"$f":"名簿!D65","v":0},{"$f":"名簿!E65","v":0},{"$f":"名簿!D30","v":0},{"$f":"名簿!E30","v":0},null,null,null,null,null,null,"バルーン挿入",null,null,null,"眼底",null,null,null,null,null,null,null,null,null,null,null,null,null,{"$f":"$F$26&\"　\"","v":"0　"},{"$f":"$D$26&\"　\"","v":"0　"},{"$f":"$B$26&\"　\"","v":"0　"}]
[null,{"$f":"名簿!D101","v":0},{"$f":"名簿!E101","v":0},{"$f":"名簿!D66","v":0},{"$f":"名簿!E66","v":0},{"$f":"名簿!D31","v":0},{"$f":"名簿!E31","v":0},null,null,null,null,null,null,"バルーン抜去しています。",null,null,null,"蝶骨",null,null,null,null,null,null,"赤松幸子　麻生静夫　飯田きく子　池田和子　竹澤とめ　",null,null,null,null,null,null,{"$f":"$F$27&\"　\"","v":"0　"},{"$f":"$D$27&\"　\"","v":"0　"},{"$f":"$B$27&\"　\"","v":"0　"}]
[null,{"$f":"名簿!D102","v":0},{"$f":"名簿!E102","v":0},{"$f":"名簿!D67","v":0},{"$f":"名簿!E67","v":0},{"$f":"名簿!D32","v":0},{"$f":"名簿!E32","v":0},null,null,null,null,null,null,"尿路感染の疑いがあります。",null,null,null,null,null,null,null,null,null,null,null,null,null,null,null,null,null,{"$f":"$F$28&\"　\"","v":"0　"},{"$f":"$D$28&\"　\"","v":"0　"},{"$f":"$B$28&\"　\"","v":"0　"}]
[null,{"$f":"名簿!D103","v":0},{"$f":"名簿!E103","v":0},{"$f":"名簿!D68","v":0},{"$f":"名簿!E68","v":0},{"$f":"名簿!D33","v":0},{"$f":"名簿!E33","v":0},null,null,null,null,null,null,"膀胱洗浄",null,null,null,null,null,null,null,null,null,null,null,null,null,null,null,null,null,{"$f":"$F$29&\"　\"","v":"0　"},{"$f":"$D$29&\"　\"","v":"0　"},{"$f":"$B$29&\"　\"","v":"0　"}]
[null,{"$f":"名簿!D104","v":0},{"$f":"名簿!E104","v":0},{"$f":"名簿!D69","v":0},{"$f":"名簿!E69","v":0},{"$f":"名簿!D34","v":0},{"$f":"名簿!E34","v":0},null,null,null,null,null,null,"陰部洗浄",null,null,null,null,null,null,null,null,null,null,null,null,null,null,null,null,null,{"$f":"$F$30&\"　\"","v":"0　"},{"$f":"$D$30&\"　\"","v":"0　"},{"$f":"$B$30&\"　\"","v":"0　"}]
[null,{"$f":"名簿!D105","v":0},{"$f":"名簿!E105","v":0},{"$f":"名簿!D70","v":0},{"$f":"名簿!E70","v":0},{"$f":"名簿!D35","v":0},{"$f":"名簿!E35","v":0},null,null,null,null,null,null,"ストーマ交換",null,null,null,null,null,null,null,null,null,null,null,null,null,null,null,null,null,{"$f":"$F$31&\"　\"","v":"0　"},{"$f":"$D$31&\"　\"","v":"0　"},{"$f":"$B$31&\"　\"","v":"0　"}]
[null,{"$f":"名簿!D106","v":0},{"$f":"名簿!E106","v":0},{"$f":"名簿!D71","v":0},{"$f":"名簿!E71","v":0},{"$f":"名簿!D36","v":0},{"$f":"名簿!E36","v":0},null,null,null,null,null,null,null,null,null,null,null,null,null,null,null,null,null,null,null,null,null,null,null,null,{"$f":"$F$32&\"　\"","v":"0　"},{"$f":"$D$32&\"　\"","v":"0　"},{"$f":"$B$32&\"　\"","v":"0　"}]
[null,null,null,{"$f":"名簿!D72","v":0},{"$f":"名簿!E72","v":0},{"$f":"名簿!D37","v":0},{"$f":"名簿!E37","v":0},null,null,null,null,null,null,null,null,null,null,null,null,null,null,null,null,null,null,null,null,null,null,null,null,{"$f":"$F$33&\"　\"","v":"0　"},{"$f":"$D$33&\"　\"","v":"0　"},null,{"$f":"$B$33","v":0}]
[null,null,null,{"$f":"名簿!D73","v":0},{"$f":"名簿!E73","v":0},{"$f":"名簿!D38","v":0},{"$f":"名簿!E38","v":0},null,null,null,null,null,null,null,null,null,null,null,null,null,null,null,null,null,null,null,null,null,null,null,null,{"$f":"$F$34&\"　\"","v":"0　"},{"$f":"$D$34&\"　\"","v":"0　"},null,{"$f":"$B$34","v":0}]
[null,null,null,{"$f":"名簿!D74","v":0},{"$f":"名簿!E74","v":0},{"$f":"名簿!D39","v":0},{"$f":"名簿!E39","v":0},null,null,null,null,null,null,null,null,null,null,null,null,null,"良く使う表現",null,"専門用語",null,"その他２",null,null,null,null,null,null,{"$f":"$F$35&\"　\"","v":"0　"},{"$f":"$D$35&\"　\"","v":"0　"},null,{"$f":"$B$35","v":0}]
[null,null,null,{"$f":"名簿!D75","v":0},{"$f":"名簿!E75","v":0},{"$f":"名簿!D40","v":0},{"$f":"名簿!E40","v":0},null,null,null,null,null,null,null,null,null,null,null,null,null,"本日より　日までショートステイ利用",null,"側臥位",null,"胃瘻",null,null,null,null,null,null,{"$f":"$F$36&\"　\"","v":"0　"},{"$f":"$D$36&\"　\"","v":"0　"},null,{"$f":"$B$36","v":0}]
[null,null,null,{"$f":"名簿!D76","v":0},{"$f":"名簿!E76","v":0},{"$f":"名簿!D41","v":0},{"$f":"名簿!E41","v":0},null,null,null,null,null,null,null,null,null,null,null,null,null,"静養室対応になっています。",null,"仰臥位",null,"振戦",null,null,null,null,null,null,{"$f":"$F$37&\"　\"","v":"0　"},{"$f":"$D$37&\"　\"","v":"0　"},null,{"$f":"$B$37","v":0}]
[null,null,null,null,null,null,null,null,null,null,null,null,null,null,null,null,null,null,null,null,"居室対応になっています。",null,"褥瘡",null,"鼻腔"]
[null,null,null,null,null,null,null,null,null,null,null,null,null,null,null,null,null,null,null,null,"様子観察お願いします。",null,"掻痒感",null,"口腔"]
[null,null,null,null,null,null,null,null,null,null,null,null,null,null,null,null,null,null,null,null,"禁飲食にしています。",null,"発赤",null,"帰苑"]
[null,null,null,null,null,null,null,null,null,null,null,null,null,null,null,null,null,null,null,null,"点滴施行しています。",null,"腫瘤",null,"拘縮"]
[null,null,null,null,null,null,null,null,null,null,null,null,null,null,null,null,null,null,null,null,"ぜい鳴があり",null,"腫張",null,"回診"]
[null,null,null,null,null,null,null,null,null,null,null,null,null,null,null,null,null,null,null,null,"呼吸が荒く",null,"腹部膨満感",null,"経管"]
[null,null,null,null,null,null,null,null,null,null,null,null,null,null,null,null,null,null,null,null,"熱感あるため",null,"心筋梗塞",null,"抜去"]
[null,null,null,null,null,null,null,null,null,null,null,null,null,null,null,null,null,null,null,null,"検査のため朝食を禁食とします。",null,"脳梗塞",null,"拘縮"]
[null,null,null,null,null,null,null,null,null,null,null,null,null,null,null,null,null,null,null,null,"苦しいとの訴えがあり",null,"認知症状",null,"弄便"]
[null,null,null,null,null,null,null,null,null,null,null,null,null,null,null,null,null,null,null,null,"手指の痺れの訴えがあり",null,"咽頭",null,"眼脂"]
[null,null,null,null,null,null,null,null,null,null,null,null,null,null,null,null,null,null,null,null,"両足挙上の指示を出しました。",null,"ＤＭ＋"]
[null,null,null,null,null,null,null,null,null,null,null,null,null,null,null,null,null,null,null,null,"緊急退所しました。"]
[]
[]
[]
[]
[]
[]
[]
[null,null,null,null,null,null,null,null,null,null,null,null,null,null,null,null,null,null,null,null,"診療・受診関連",null,"状態像",null,"その他１"]
[null,null,null,null,null,null,null,null,null,null,null,null,null,null,null,null,null,null,null,null,"辰巳病院を緊急受診しました。",null,"肺炎の疑いがあり",null,"問いかけに反応"]
[null,null,null,null,null,null,null,null,null,null,null,null,null,null,null,null,null,null,null,null,"眼科受診をしています。",null,"尿路感染の疑いがあり",null,"なし"]
[null,null,null,null,null,null,null,null,null,null,null,null,null,null,null,null,null,null,null,null,"検査のため辰巳病院を受診をしています。",null,"浮腫が見られ",null,"あり"]
[null,null,null,null,null,null,null,null,null,null,null,null,null,null,null,null,null,null,null,null,"労災病院を受診しています。",null,"呼吸に異音が聞かれ",null,"良好"]
[null,null,null,null,null,null,null,null,null,null,null,null,null,null,null,null,null,null,null,null,"ペースメーカー交換のため",null,"顔色が悪く",null,"意識混濁"]
[null,null,null,null,null,null,null,null,null,null,null,null,null,null,null,null,null,null,null,null,"バルーン挿入のため",null,"嘔吐感の訴えがあり",null,"感情不安定"]
[null,null,null,null,null,null,null,null,null,null,null,null,null,null,null,null,null,null,null,null,"マーゲンチューブ交換のため",null,"不定愁訴が見られ",null,"躁状態"]
[null,null,null,null,null,null,null,null,null,null,null,null,null,null,null,null,null,null,null,null,"鶴舞循環器センターを受診しています。",null,"熱感があり",null,"鬱状態"]
[null,null,null,null,null,null,null,null,null,null,null,null,null,null,null,null,null,null,null,null,"点滴を施行しました。",null,"悪寒の訴えが見られ",null,"食欲不振"]
[null,null,null,null,null,null,null,null,null,null,null,null,null,null,null,null,null,null,null,null,"訪問歯科受診",null,"血圧が　低く　高く",null,"食事拒否"]
[null,null,null,null,null,null,null,null,null,null,null,null,null,null,null,null,null,null,null,null,"入院になりました。",null,"発熱が見られ",null,"入浴拒否"]
[null,null,null,null,null,null,null,null,null,null,null,null,null,null,null,null,null,null,null,null,"退院しています。",null,"風邪症状が見られ",null,"清拭しています。"]
[null,null,null,null,null,null,null,null,null,null,null,null,null,null,null,null,null,null,null,null,"退院予定",null,"鼻水が見られ",null,"入浴中止しています。"]
[null,null,null,null,null,null,null,null,null,null,null,null,null,null,null,null,null,null,null,null,"死亡されています。",null,"感情失禁が見られ",null,"血圧不安定"]
[null,null,null,null,null,null,null,null,null,null,null,null,null,null,null,null,null,null,null,null,"院長回診の結果",null,"心房細動があり"]
[null,null,null,null,null,null,null,null,null,null,null,null,null,null,null,null,null,null,null,null,"副院長回診の結果",null,"呼吸が荒く"]
[null,null,null,null,null,null,null,null,null,null,null,null,null,null,null,null,null,null,null,null,"主治医からの意見",null,"肩呼吸が見られ"]
[null,null,null,null,null,null,null,null,null,null,null,null,null,null,null,null,null,null,null,null,null,null,"腫れが見られ"]
[null,null,null,null,null,null,null,null,null,null,null,null,null,null,null,null,null,null,null,null,null,null,"頻尿の訴えがあり"]
[]
[]
[null,null,null,null,null,null,null,null,null,null,null,null,null,null,null,null,null,null,null,null,"体の部位",null,"事故・怪我",null,"その他４"]
[null,null,null,null,null,null,null,null,null,null,null,null,null,null,null,null,null,null,null,null,"仙骨部",null,"転倒打撲",null,"ご家族に相談"]
[null,null,null,null,null,null,null,null,null,null,null,null,null,null,null,null,null,null,null,null,"右大腿部",null,"骨折の可能性があり",null,"ご家族に連絡"]
[null,null,null,null,null,null,null,null,null,null,null,null,null,null,null,null,null,null,null,null,"左大腿部",null,"脱臼の可能性があり",null,"主治医に相談"]
[null,null,null,null,null,null,null,null,null,null,null,null,null,null,null,null,null,null,null,null,"右上腕部",null,"皮膚剥離",null,"辰巳病院に相談"]
[null,null,null,null,null,null,null,null,null,null,null,null,null,null,null,null,null,null,null,null,"左上腕部",null,"亀裂骨折",null,"胸部レントゲン撮影のため"]
[null,null,null,null,null,null,null,null,null,null,null,null,null,null,null,null,null,null,null,null,"背部",null,"大腿部頚部",null,"頭部ＣＴ撮影のため"]
[null,null,null,null,null,null,null,null,null,null,null,null,null,null,null,null,null,null,null,null,"腹部",null,"剥離骨折",null,"ペースメーカー交換のため"]
[null,null,null,null,null,null,null,null,null,null,null,null,null,null,null,null,null,null,null,null,"胸部",null,"裂傷",null,"インフルエンザの疑い"]
[null,null,null,null,null,null,null,null,null,null,null,null,null,null,null,null,null,null,null,null,"頭部",null,"擦過傷",null,"ノロウィルスの疑い"]
[null,null,null,null,null,null,null,null,null,null,null,null,null,null,null,null,null,null,null,null,"顔面",null,"大転子",null,"静養室隔離対応にしました。"]
[null,null,null,null,null,null,null,null,null,null,null,null,null,null,null,null,null,null,null,null,"後頭部",null,"尺骨",null,"居室隔離対応にしました。"]
[null,null,null,null,null,null,null,null,null,null,null,null,null,null,null,null,null,null,null,null,"鼠径部"]
[null,null,null,null,null,null,null,null,null,null,null,null,null,null,null,null,null,null,null,null,"右足"]
[null,null,null,null,null,null,null,null,null,null,null,null,null,null,null,null,null,null,null,null,"左足"]
[null,null,null,null,null,null,null,null,null,null,null,null,null,null,null,null,null,null,null,null,"両足"]
[null,null,null,null,null,null,null,null,null,null,null,null,null,null,null,null,null,null,null,null,"大腿部"]
[null,null,null,null,null,null,null,null,null,null,null,null,null,null,null,null,null,null,null,null,"頚部"]
[null,null,null,null,null,null,null,null,null,null,null,null,null,null,null,null,null,null,null,null,"顎間接"]
[]
[]
[]
[null,null,null,null,null,null,null,null,null,null,null,null,null,null,null,null,null,null,null,null,"排泄関連",null,"皮膚の状況",null,"その他３"]
[null,null,null,null,null,null,null,null,null,null,null,null,null,null,null,null,null,null,null,null,"（-２）　",null,"発疹あります。",null,"心臓"]
[null,null,null,null,null,null,null,null,null,null,null,null,null,null,null,null,null,null,null,null,"（-３）　",null,"発赤が見られます。",null,"肝臓"]
[null,null,null,null,null,null,null,null,null,null,null,null,null,null,null,null,null,null,null,null,"（-４）　",null,"褥瘡が悪化しています。",null,"肺"]
[null,null,null,null,null,null,null,null,null,null,null,null,null,null,null,null,null,null,null,null,"（-５）　",null,"皮膚状態の改善が見られます。",null,"食道"]
[null,null,null,null,null,null,null,null,null,null,null,null,null,null,null,null,null,null,null,null,"（-６）　",null,"壊死進行",null,"膵臓"]
[null,null,null,null,null,null,null,null,null,null,null,null,null,null,null,null,null,null,null,null,"（＋大）　",null,"血行不良",null,"腎臓"]
[null,null,null,null,null,null,null,null,null,null,null,null,null,null,null,null,null,null,null,null,"（＋中）　",null,"褥瘡になりかけています。",null,"肝臓"]
[null,null,null,null,null,null,null,null,null,null,null,null,null,null,null,null,null,null,null,null,"（＋小）　",null,"出血斑があり",null,"肝機能"]
[null,null,null,null,null,null,null,null,null,null,null,null,null,null,null,null,null,null,null,null,"腹部膨満感があり",null,"打撲痕があり",null,"直腸"]
[null,null,null,null,null,null,null,null,null,null,null,null,null,null,null,null,null,null,null,null,"苦しいとの訴えがあり",null,"出血して",null,"大腸"]
[null,null,null,null,null,null,null,null,null,null,null,null,null,null,null,null,null,null,null,null,"ハルン漏れがあり",null,"増悪して",null,"膀胱"]
[null,null,null,null,null,null,null,null,null,null,null,null,null,null,null,null,null,null,null,null,"バルーン挿入",null,null,null,"眼底"]
[null,null,null,null,null,null,null,null,null,null,null,null,null,null,null,null,null,null,null,null,"バルーン抜去しています。",null,null,null,"蝶骨"]
[null,null,null,null,null,null,null,null,null,null,null,null,null,null,null,null,null,null,null,null,"尿路感染の疑いがあります。"]
[null,null,null,null,null,null,null,null,null,null,null,null,null,null,null,null,null,null,null,null,"膀胱洗浄"]
[null,null,null,null,null,null,null,null,null,null,null,null,null,null,null,null,null,null,null,null,"陰部洗浄"]
[null,null,null,null,null,null,null,null,null,null,null,null,null,null,null,null,null,null,null,null,"ストーマ交換"]

{"sheet":"看護日誌","index":4,"n_rows":5,"n_cols":26,"rows_kept":5,"cut":false,"hidden":false,"merged":[[2,6,2,8],[2,21,2,23]]}
[null,null,{"$f":"基本情報!E7*10000+申送事項!N2*100+申送事項!O2","v":0},"日付\n一致数","検索式",{"$f":"基本情報!BP4","v":1},"重要項目は右クリックで◎が記入されます。　　　記録を消去したい場合は番号を右クリックして下さい"]
[null,null,{"$f":"ROW()-5","v":-3},{"$f":"COUNTIF(G6:G65536,C1)","v":0},{"$f":"IF(H2=\"◎\",(900000000-G2)&J2,(G2+900000000)&J2)","v":"900000000"},{"$f":"MAX($B$6:$B$65536)","v":0},null,null,null,null,null,null,null,null,null,null,null,null,null,null,{"$f":"MAX(Q6:Q65536)","v":0}]
[null,null,"日付",{"$f":"MAX($B$6:$B$65536)","v":0},"重要",{"$f":"IF(AND(L3=$G$3,K3=\"◎\"),I3/100000,IF(L3=$G$3,I3/10000,I3))","v":0},{"$f":"NOW()","v":"2012-06-06T21:38:04.800"},null,null,null,"看護日誌",null,null,null,null,null,null,null,null,null,null,"2012-06-05T23:29:00.440",null,null,null,"看護日誌（前日分）"]
[]
[null,"番号","予備","検索２","検索３",-10000,"日付","重要","お名前","フリガナ","記事（自由に訂正できます。）",null,null,null,null,null,"番号","予備","検索２","検索３",-10000,"日付","重要","お名前","フリガナ","記事"]

{"sheet":"年間記録","index":5,"n_rows":137,"n_cols":19,"rows_kept":137,"cut":false,"hidden":false,"merged":[[1,6,1,8],[2,6,2,8],[3,15,4,15],[6,18,6,19]]}
[null,null,{"$f":"看護日誌!C1","v":0},"日付\n一致数",null,"記事数","重要項目は右クリックで◎が記入され重要閲覧ができます。　　記録を消去したい場合は番号を右クリックして下さい"]
[null,"番号",{"$f":"ROW()-5","v":-3},{"$f":"COUNTIF(G6:G65536,C1)","v":0},{"$f":"IF(H2=\"◎\",(900000000-G2)&J2,(G2+900000000)&J2)","v":{"$error":"#VALUE!"}},{"$f":"COUNTIF(H6:H65536,\"◎\")","v":0},"閲覧対象者",null,null,null,"特別養護老人ホーム辰巳萬緑苑"]
[null,null,{"$f":"IF(AND(I3=$G$3,H3=\"◎\"),F3/100000,IF(I3=$G$3,F3/10000,F3))","v":{"$error":"#VALUE!"}},{"$f":"MAX($B$6:$B$65536)","v":0},{"$f":"COUNTIF(I6:I65536,G3)","v":0},{"$f":"G3*1000","v":{"$error":"#VALUE!"}},{"$f":"IF(OR(B3=\"\",B3=0),\"１～132の番号を入れて下さい！\",VLOOKUP(B3,N6:O156,2))","v":"１～132の番号を入れて下さい！"},null,null,null,"年間記録",null,null,null,null,39]
[null,null,null,null,null,null,null,null,null,null,null,null,null,null,null,"から"]
[null,"番号","予備","名前順","重要",-10000,"日付","重要","お名前","フリガナ","記事（自由に訂正できます。）"]
[null,null,null,null,null,null,null,null,null,null,null,null,null,1,{"$f":"名簿!D7","v":0},40]
[null,null,null,null,null,null,null,null,null,null,null,null,null,2,{"$f":"名簿!D8","v":0},"まで",null,null,"危険"]
[null,null,null,null,null,null,null,null,null,null,null,null,null,3,{"$f":"名簿!D9","v":0}]
[null,null,null,null,null,null,null,null,null,null,null,null,null,4,{"$f":"名簿!D10","v":0}]
[null,null,null,null,null,null,null,null,null,null,null,null,null,5,{"$f":"名簿!D11","v":0}]
[null,null,null,null,null,null,null,null,null,null,null,null,null,6,{"$f":"名簿!D12","v":0}]
[null,null,null,null,null,null,null,null,null,null,null,null,null,7,{"$f":"名簿!D13","v":0}]
[null,null,null,null,null,null,null,null,null,null,null,null,null,8,{"$f":"名簿!D14","v":0}]
[null,null,null,null,null,null,null,null,null,null,null,null,null,9,{"$f":"名簿!D15","v":0}]
[null,null,null,null,null,null,null,null,null,null,null,null,null,10,{"$f":"名簿!D16","v":0}]
[null,null,null,null,null,null,null,null,null,null,null,null,null,11,{"$f":"名簿!D17","v":0}]
[null,null,null,null,null,null,null,null,null,null,null,null,null,12,{"$f":"名簿!D18","v":0}]
[null,null,null,null,null,null,null,null,null,null,null,null,null,13,{"$f":"名簿!D19","v":0}]
[null,null,null,null,null,null,null,null,null,null,null,null,null,14,{"$f":"名簿!D20","v":0}]
[null,null,null,null,null,null,null,null,null,null,null,null,null,15,{"$f":"名簿!D21","v":0}]
[null,null,null,null,null,null,null,null,null,null,null,null,null,16,{"$f":"名簿!D22","v":0}]
[null,null,null,null,null,null,null,null,null,null,null,null,null,17,{"$f":"名簿!D23","v":0}]
[null,null,null,null,null,null,null,null,null,null,null,null,null,18,{"$f":"名簿!D24","v":0}]
[null,null,null,null,null,null,null,null,null,null,null,null,null,19,{"$f":"名簿!D25","v":0}]
[null,null,null,null,null,null,null,null,null,null,null,null,null,20,{"$f":"名簿!D26","v":0}]
[null,null,null,null,null,null,null,null,null,null,null,null,null,21,{"$f":"名簿!D27","v":0}]
[null,null,null,null,null,null,null,null,null,null,null,null,null,22,{"$f":"名簿!D28","v":0}]
[null,null,null,null,null,null,null,null,null,null,null,null,null,23,{"$f":"名簿!D29","v":0}]
[null,null,null,null,null,null,null,null,null,null,null,null,null,24,{"$f":"名簿!D30","v":0}]
[null,null,null,null,null,null,null,null,null,null,null,null,null,25,{"$f":"名簿!D31","v":0}]
[null,null,null,null,null,null,null,null,null,null,null,null,null,26,{"$f":"名簿!D32","v":0}]
[null,null,null,null,null,null,null,null,null,null,null,null,null,27,{"$f":"名簿!D33","v":0}]
[null,null,null,null,null,null,null,null,null,null,null,null,null,28,{"$f":"名簿!D34","v":0}]
[null,null,null,null,null,null,null,null,null,null,null,null,null,29,{"$f":"名簿!D35","v":0}]
[null,null,null,null,null,null,null,null,null,null,null,null,null,30,{"$f":"名簿!D36","v":0}]
[null,null,null,null,null,null,null,null,null,null,null,null,null,31,{"$f":"名簿!D37","v":0}]
[null,null,null,null,null,null,null,null,null,null,null,null,null,32,{"$f":"名簿!D38","v":0}]
[null,null,null,null,null,null,null,null,null,null,null,null,null,33,{"$f":"名簿!D39","v":0}]
[null,null,null,null,null,null,null,null,null,null,null,null,null,34,{"$f":"名簿!D40","v":0}]
[null,null,null,null,null,null,null,null,null,null,null,null,null,35,{"$f":"名簿!D41","v":0}]
[null,null,null,null,null,null,null,null,null,null,null,null,null,36,{"$f":"名簿!D42","v":0}]
[null,null,null,null,null,null,null,null,null,null,null,null,null,37,{"$f":"名簿!D43","v":0}]
[null,null,null,null,null,null,null,null,null,null,null,null,null,38,{"$f":"名簿!D44","v":0}]
[null,null,null,null,null,null,null,null,null,null,null,null,null,39,{"$f":"名簿!D45","v":0}]
[null,null,null,null,null,null,null,null,null,null,null,null,null,40,{"$f":"名簿!D46","v":0}]
[null,null,null,null,null,null,null,null,null,null,null,null,null,41,{"$f":"名簿!D47","v":0}]
[null,null,null,null,null,null,null,null,null,null,null,null,null,42,{"$f":"名簿!D48","v":0}]
[null,null,null,null,null,null,null,null,null,null,null,null,null,43,{"$f":"名簿!D49","v":0}]
[null,null,null,null,null,null,null,null,null,null,null,null,null,44,{"$f":"名簿!D50","v":0}]
[null,null,null,null,null,null,null,null,null,null,null,null,null,45,{"$f":"名簿!D51","v":0}]
[null,null,null,null,null,null,null,null,null,null,null,null,null,46,{"$f":"名簿!D52","v":0}]
[null,null,null,null,null,null,null,null,null,null,null,null,null,47,{"$f":"名簿!D53","v":0}]
[null,null,null,null,null,null,null,null,null,null,null,null,null,48,{"$f":"名簿!D54","v":0}]
[null,null,null,null,null,null,null,null,null,null,null,null,null,49,{"$f":"名簿!D55","v":0}]
[null,null,null,null,null,null,null,null,null,null,null,null,null,50,{"$f":"名簿!D56","v":0}]
[null,null,null,null,null,null,null,null,null,null,null,null,null,51,{"$f":"名簿!D57","v":0}]
[null,null,null,null,null,null,null,null,null,null,null,null,null,52,{"$f":"名簿!D58","v":0}]
[null,null,null,null,null,null,null,null,null,null,null,null,null,53,{"$f":"名簿!D59","v":0}]
[null,null,null,null,null,null,null,null,null,null,null,null,null,54,{"$f":"名簿!D60","v":0}]
[null,null,null,null,null,null,null,null,null,null,null,null,null,55,{"$f":"名簿!D61","v":0}]
[null,null,null,null,null,null,null,null,null,null,null,null,null,56,{"$f":"名簿!D62","v":0}]
[null,null,null,null,null,null,null,null,null,null,null,null,null,57,{"$f":"名簿!D63","v":0}]
[null,null,null,null,null,null,null,null,null,null,null,null,null,58,{"$f":"名簿!D64","v":0}]
[null,null,null,null,null,null,null,null,null,null,null,null,null,59,{"$f":"名簿!D65","v":0}]
[null,null,null,null,null,null,null,null,null,null,null,null,null,60,{"$f":"名簿!D66","v":0}]
[null,null,null,null,null,null,null,null,null,null,null,null,null,61,{"$f":"名簿!D67","v":0}]
[null,null,null,null,null,null,null,null,null,null,null,null,null,62,{"$f":"名簿!D68","v":0}]
[null,null,null,null,null,null,null,null,null,null,null,null,null,63,{"$f":"名簿!D69","v":0}]
[null,null,null,null,null,null,null,null,null,null,null,null,null,64,{"$f":"名簿!D70","v":0}]
[null,null,null,null,null,null,null,null,null,null,null,null,null,65,{"$f":"名簿!D71","v":0}]
[null,null,null,null,null,null,null,null,null,null,null,null,null,66,{"$f":"名簿!D72","v":0}]
[null,null,null,null,null,null,null,null,null,null,null,null,null,67,{"$f":"名簿!D73","v":0}]
[null,null,null,null,null,null,null,null,null,null,null,null,null,68,{"$f":"名簿!D74","v":0}]
[null,null,null,null,null,null,null,null,null,null,null,null,null,69,{"$f":"名簿!D75","v":0}]
[null,null,null,null,null,null,null,null,null,null,null,null,null,70,{"$f":"名簿!D76","v":0}]
[null,null,null,null,null,null,null,null,null,null,null,null,null,71,{"$f":"名簿!D77","v":0}]
[null,null,null,null,null,null,null,null,null,null,null,null,null,72,{"$f":"名簿!D78","v":0}]
[null,null,null,null,null,null,null,null,null,null,null,null,null,73,{"$f":"名簿!D79","v":0}]
[null,null,null,null,null,null,null,null,null,null,null,null,null,74,{"$f":"名簿!D80","v":0}]
[null,null,null,null,null,null,null,null,null,null,null,null,null,75,{"$f":"名簿!D81","v":0}]
[null,null,null,null,null,null,null,null,null,null,null,null,null,76,{"$f":"名簿!D82","v":0}]
[null,null,null,null,null,null,null,null,null,null,null,null,null,77,{"$f":"名簿!D83","v":0}]
[null,null,null,null,null,null,null,null,null,null,null,null,null,78,{"$f":"名簿!D84","v":0}]
[null,null,null,null,null,null,null,null,null,null,null,null,null,79,{"$f":"名簿!D85","v":0}]
[null,null,null,null,null,null,null,null,null,null,null,null,null,80,{"$f":"名簿!D86","v":0}]
[null,null,null,null,null,null,null,null,null,null,null,null,null,81,{"$f":"名簿!D87","v":0}]
[null,null,null,null,null,null,null,null,null,null,null,null,null,82,{"$f":"名簿!D88","v":0}]
[null,null,null,null,null,null,null,null,null,null,null,null,null,83,{"$f":"名簿!D89","v":0}]
[null,null,null,null,null,null,null,null,null,null,null,null,null,84,{"$f":"名簿!D90","v":0}]
[null,null,null,null,null,null,null,null,null,null,null,null,null,85,{"$f":"名簿!D91","v":0}]
[null,null,null,null,null,null,null,null,null,null,null,null,null,86,{"$f":"名簿!D92","v":0}]
[null,null,null,null,null,null,null,null,null,null,null,null,null,87,{"$f":"名簿!D93","v":0}]
[null,null,null,null,null,null,null,null,null,null,null,null,null,88,{"$f":"名簿!D94","v":0}]
[null,null,null,null,null,null,null,null,null,null,null,null,null,89,{"$f":"名簿!D95","v":0}]
[null,null,null,null,null,null,null,null,null,null,null,null,null,90,{"$f":"名簿!D96","v":0}]
[null,null,null,null,null,null,null,null,null,null,null,null,null,91,{"$f":"名簿!D97","v":0}]
[null,null,null,null,null,null,null,null,null,null,null,null,null,92,{"$f":"名簿!D98","v":0}]
[null,null,null,null,null,null,null,null,null,null,null,null,null,93,{"$f":"名簿!D99","v":0}]
[null,null,null,null,null,null,null,null,null,null,null,null,null,94,{"$f":"名簿!D100","v":0}]
[null,null,null,null,null,null,null,null,null,null,null,null,null,95,{"$f":"名簿!D101","v":0}]
[null,null,null,null,null,null,null,null,null,null,null,null,null,96,{"$f":"名簿!D102","v":0}]
[null,null,null,null,null,null,null,null,null,null,null,null,null,97,{"$f":"名簿!D103","v":0}]
[null,null,null,null,null,null,null,null,null,null,null,null,null,98,{"$f":"名簿!D104","v":0}]
[null,null,null,null,null,null,null,null,null,null,null,null,null,99,{"$f":"名簿!D105","v":0}]
[null,null,null,null,null,null,null,null,null,null,null,null,null,100,{"$f":"名簿!D106","v":0}]
[null,null,null,null,null,null,null,null,null,null,null,null,null,101,{"$f":"申送事項!J5","v":"引継時発熱者"}]
[null,null,null,null,null,null,null,null,null,null,null,null,null,102,{"$f":"申送事項!J6","v":"禁食者"}]
[null,null,null,null,null,null,null,null,null,null,null,null,null,103,{"$f":"申送事項!J7","v":"要観察者"}]
[null,null,null,null,null,null,null,null,null,null,null,null,null,104,{"$f":"申送事項!J8","v":"主治医相談　　鈴木啓之先生"}]
[null,null,null,null,null,null,null,null,null,null,null,null,null,105,{"$f":"申送事項!J9","v":"主治医相談　　鈴木章浩先生"}]
[null,null,null,null,null,null,null,null,null,null,null,null,null,106,{"$f":"申送事項!J10","v":"主治医相談　　木村玲子先生"}]
[null,null,null,null,null,null,null,null,null,null,null,null,null,107,{"$f":"申送事項!J11","v":"本日入院"}]
[null,null,null,null,null,null,null,null,null,null,null,null,null,108,{"$f":"申送事項!J12","v":"本日退院"}]
[null,null,null,null,null,null,null,null,null,null,null,null,null,109,{"$f":"申送事項!J13","v":"死亡退所"}]
[null,null,null,null,null,null,null,null,null,null,null,null,null,110,{"$f":"申送事項!J14","v":"退院予定"}]
[null,null,null,null,null,null,null,null,null,null,null,null,null,111,{"$f":"申送事項!J15","v":"辰巳病院受診"}]
[null,null,null,null,null,null,null,null,null,null,null,null,null,112,{"$f":"申送事項!J16","v":"眼科受診"}]
[null,null,null,null,null,null,null,null,null,null,null,null,null,113,{"$f":"申送事項!J17","v":"リハビリ実施"}]
[null,null,null,null,null,null,null,null,null,null,null,null,null,114,{"$f":"申送事項!J18","v":"インフルエンザ\n予防接種"}]
[null,null,null,null,null,null,null,null,null,null,null,null,null,115,{"$f":"申送事項!J19","v":"定期健康診断"}]
[null,null,null,null,null,null,null,null,null,null,null,null,null,116,{"$f":"申送事項!J20","v":"外出の予定"}]
[null,null,null,null,null,null,null,null,null,null,null,null,null,117,{"$f":"申送事項!J21","v":0}]
[null,null,null,null,null,null,null,null,null,null,null,null,null,118,{"$f":"申送事項!J22","v":0}]
[null,null,null,null,null,null,null,null,null,null,null,null,null,119,{"$f":"申送事項!J23","v":0}]
[null,null,null,null,null,null,null,null,null,null,null,null,null,120,{"$f":"申送事項!J24","v":0}]
[null,null,null,null,null,null,null,null,null,null,null,null,null,121,{"$f":"申送事項!J25","v":0}]
[null,null,null,null,null,null,null,null,null,null,null,null,null,122,{"$f":"申送事項!J26","v":0}]
[null,null,null,null,null,null,null,null,null,null,null,null,null,123,{"$f":"申送事項!J27","v":0}]
[null,null,null,null,null,null,null,null,null,null,null,null,null,124,{"$f":"申送事項!J28","v":0}]
[null,null,null,null,null,null,null,null,null,null,null,null,null,125,{"$f":"申送事項!J29","v":0}]
[null,null,null,null,null,null,null,null,null,null,null,null,null,126,{"$f":"申送事項!J30","v":0}]
[null,null,null,null,null,null,null,null,null,null,null,null,null,127,{"$f":"申送事項!J31","v":0}]
[null,null,null,null,null,null,null,null,null,null,null,null,null,128,{"$f":"申送事項!J32","v":0}]
[null,null,null,null,null,null,null,null,null,null,null,null,null,129,{"$f":"申送事項!J33","v":0}]
[null,null,null,null,null,null,null,null,null,null,null,null,null,130,{"$f":"申送事項!J34","v":0}]
[null,null,null,null,null,null,null,null,null,null,null,null,null,131,{"$f":"申送事項!J35","v":0}]
[null,null,null,null,null,null,null,null,null,null,null,null,null,132,{"$f":"申送事項!J36","v":0}]